{"text_format":"3","workbook":"xlsx","n_sheets":12,"sheets":["Матрица","ИЛ ОБЩИЙ ТЕСТ","КО А","КО Б","КО В","КО Г","КО Д","Профстандарт к А модулю ","Профстандарт к Б модулю (2)","Профстандарт к В модулю (3)","Профстандарт  к Г модулю(4)","Профстандарт к Д модулю (5)"],"not_rendered":{"defined_names":8},"read":"whole","date_system":"1900"}

{"sheet":"Матрица","index":0,"n_rows":11,"n_cols":8,"rows_kept":11,"merged":[[10,1,10,6]]}
["Обобщенная трудовая функция","Трудовая функция","Нормативный документ/ЗУН","Модуль","Константа/вариатив","ИЛ","КО","набранные баллы в регионе"]
["Выполнение клиничесих лабораторных исследований первой и второй категории сложности","Взятие, прием, предварительная оценка и обработка биологических материалов, приготовление проб и препаратов;                     Обеспечение санитарно-противоэпидемического режима медицинской лаборатории                        Ведение медицинской документации, организация деятельности находящегося в распоряжении медицинского персонала;                           Оказание медицинской помощи в экстренной форме","ПС: 02.071; ФГОС СПО 31.02.03 Лабораторная диагностика","Модуль А – выполнение организационно-технических и базовых процедур при выполнении различных видов лаб. Исследований","Константа ","Раздел ИЛ 1",10]
["Выполнение клиничесих лабораторных исследований первой и второй категории сложности","Выполнение клинических лабораторных исследований;   Ведение медицинской документации, организация деятельности находящегося в распоряжении медицинского персонала;   ","ПС: 02.071; ФГОС СПО 31.02.03 Лабораторная диагностика","Модуль Б - выполнение клинических лабораторных исследований первой и второй категории","Константа","Раздел ИЛ 2",30]
["Выполнение клиничесих лабораторных исследований первой и второй категории сложности","Выполнение клинических лабораторных исследований; Обеспечение санитарно-противоэпидемического режима медицинской лаборатории; Ведение медицинской документации, организация деятельности находящегося в распоряжении медицинского персонала;   ","ПС: 02.071; ФГОС СПО 31.02.03 Лабораторная диагностика","Модуль В – выполнение микробиологических лабораторных исследований первой и второй категории","Вариатив","Раздел ИЛ 3",10]
["Выполнение клиничесих лабораторных исследований первой и второй категории сложности","Выполнение клинических лабораторных исследований;    Ведение медицинской документации, организация деятельности находящегося в распоряжении медицинского персонала;    ","ПС: 02.071; ФГОС СПО 31.02.03 Лабораторная диагностика","Модуль Г – выполнение морфологических лабораторных исследований первой и второй категории","Константа","Раздел ИЛ 4",20]
["Выполнение клиничесих лабораторных исследований первой и второй категории сложности","Обеспечение санитарно-противоэпидемического режима медицинской лаборатории; Ведение медицинской документации, организация деятельности находящегося в распоряжении медицинского персонала","ПС: 02.071; ФГОС СПО 31.02.03 Лабораторная диагностика","Модуль Д – выполнение санитарно-эпидемиологических исследований ","Вариатив","Раздел ИЛ 5",10]
[{"$nulls":6},80]
[]
[]
[]
[null,"Для выполнения конкурсного задания (или проведения РЧ) неизменными являются модули 1,2,4. Другие модули выбираются под запрос работодателя конкретного региона. Количество баллов в критериях оценки не меняется."]

{"sheet":"ИЛ ОБЩИЙ ТЕСТ","index":1,"n_rows":205,"n_cols":10,"rows_kept":205,"merged":[[0,0,10,0],[0,1,0,9],[0,10,12,10],[1,1,1,2],[1,3,1,4],[1,5,10,7],[1,8,1,9],[2,1,2,2],[2,3,2,4],[2,8,2,9],[3,1,3,2],[3,3,3,4],[3,8,3,9],[4,1,4,2],[4,3,4,4],[4,8,4,9],[5,1,5,2],[5,3,5,4],[5,8,5,9],[6,1,6,2],[6,3,6,4],[6,8,10,9],[7,1,7,2],[7,3,7,4],[8,1,8,2],[8,3,8,4],[9,1,9,2],[9,3,9,4],[10,1,10,2],[10,3,10,4],[11,0,12,9],[13,0,229,0],[13,1,13,9],[14,1,14,6],[14,7,14,9],[14,10,23,10],[21,1,21,6],[21,7,21,9],[24,1,24,6],[24,7,24,9],[27,1,27,6],[27,7,27,9],[28,7,29,9],[30,1,30,6],[30,7,30,9],[31,7,37,9],[38,1,38,6],[38,7,38,9],[39,7,41,9],[42,1,42,9],[43,2,43,6],[43,7,43,9],[44,2,44,6],[44,7,44,9],[45,1,45,9],[46,1,46,9],[46,10,137,10],[47,1,47,9],[48,5,48,6],[48,7,48,9],[49,5,49,6],[49,7,49,9],[50,5,50,6],[50,7,50,9],[51,5,51,6],[51,7,51,9],[52,5,52,6],[52,7,52,9],[53,5,53,6],[53,7,53,9],[54,5,54,6],[55,5,55,6],[55,7,55,9],[56,1,56,9],[57,5,57,6],[57,7,57,9],[58,5,58,6],[58,7,58,9],[59,5,59,6],[59,7,59,9],[60,1,60,9],[61,5,61,6],[61,7,61,9],[62,5,62,6],[62,7,62,9],[63,5,63,6],[63,7,63,9],[64,5,64,6],[64,7,64,9],[65,5,65,6],[65,7,65,9],[66,5,66,6],[66,7,66,9],[67,5,67,6],[67,7,67,9],[68,5,68,6],[68,7,68,9],[69,5,69,6],[69,7,69,9],[70,5,70,6],[71,5,71,6],[71,7,71,9],[72,5,72,6],[72,7,72,9],[73,5,73,6],[74,5,74,6],[74,7,74,9],[75,5,75,6],[75,7,75,9],[76,5,76,6],[76,7,76,9],[77,5,77,6],[77,7,77,9],[78,5,78,6],[78,7,78,9],[79,5,79,6],[79,7,79,9],[80,5,80,6],[80,7,80,9],[81,5,81,6],[81,7,81,9],[82,5,82,6],[82,7,82,9],[83,5,83,6],[83,7,83,9],[84,5,84,6],[84,7,84,9],[85,5,85,6],[85,7,85,9],[86,5,86,6],[86,7,86,9],[87,5,87,6],[87,7,87,9],[88,5,88,6],[88,7,88,9],[89,5,89,6],[89,7,89,9],[90,5,90,6],[91,5,91,6],[91,7,91,9],[92,5,92,6],[92,7,92,9],[93,5,93,6],[93,7,93,9],[94,5,94,6],[94,7,94,9],[95,5,95,6],[95,7,95,9],[96,5,96,6],[96,7,96,9],[97,5,97,6],[97,7,97,9],[98,5,98,6],[98,7,98,9],[99,5,99,6],[99,7,99,9],[100,5,100,6],[100,7,100,9],[101,5,101,6],[102,5,102,6],[103,5,103,6],[103,7,103,9],[104,5,104,6],[104,7,104,9],[105,5,105,6],[105,7,105,9],[106,5,106,6],[106,7,106,9],[107,5,107,6],[107,7,107,9],[108,5,108,6],[108,7,108,9],[109,5,109,6],[109,7,109,9],[110,5,110,6],[110,7,110,9],[111,5,111,6],[112,5,112,6],[112,7,112,9],[113,1,113,9],[114,5,114,6],[114,7,114,9],[115,5,115,6],[115,7,115,9],[116,5,116,6],[117,5,117,6],[117,7,117,9],[118,1,118,9],[119,5,119,6],[119,7,119,9],[120,5,120,6],[120,7,120,9],[121,5,121,6],[121,7,121,9],[122,5,122,6],[122,7,122,9],[123,5,123,6],[123,7,123,9],[124,5,124,6],[124,7,124,9],[126,1,126,9],[127,1,127,9],[128,5,128,6],[128,7,128,9],[129,5,129,6],[129,7,129,9],[130,1,130,9],[131,5,131,6],[131,7,131,9],[132,5,132,6],[132,7,132,9],[133,1,133,9],[134,2,134,6],[134,7,134,9],[135,2,135,6],[135,7,135,9],[136,1,137,9],[138,1,138,9],[139,1,139,9],[140,5,140,6],[140,7,140,9],[140,10,229,10],[141,5,141,6],[141,7,141,9],[142,1,142,9],[143,5,143,6],[143,7,143,9],[144,5,144,6],[144,7,144,9],[145,5,145,6],[145,7,145,9],[146,5,146,6],[147,5,147,6],[148,5,148,6],[148,7,148,9],[149,1,149,9],[150,2,150,6],[150,7,150,9],[151,2,151,6],[151,7,151,9],[152,1,152,9],[153,1,153,9],[154,1,154,9],[155,5,155,6],[155,7,155,9],[156,5,156,6],[156,7,156,9],[157,5,157,6],[157,7,157,9],[158,1,158,9],[159,5,159,6],[159,7,159,9],[160,5,160,6],[160,7,160,9],[161,5,161,6],[161,7,161,9],[162,5,162,6],[162,7,162,9],[163,5,163,6],[163,7,163,9],[164,5,164,6],[164,7,164,9],[165,5,165,6],[165,7,165,9],[166,1,166,9],[167,2,167,6],[167,7,167,9],[168,2,168,6],[168,7,168,9],[169,1,169,9],[170,1,170,9],[171,1,171,9],[172,5,172,6],[172,7,172,9],[173,5,173,6],[173,7,173,9],[174,1,174,9],[175,5,175,6],[175,7,175,9],[176,5,176,6],[176,7,176,9],[177,5,177,6],[177,7,177,9],[178,5,178,6],[179,5,179,6],[180,5,180,6],[180,7,180,9],[181,1,181,9],[182,2,182,6],[182,7,182,9],[183,2,183,6],[183,7,183,9],[184,1,185,9],[186,1,186,9],[187,5,187,6],[187,7,187,9],[188,5,188,6],[188,7,188,9],[189,5,189,6],[189,7,189,9],[190,5,190,6],[190,7,190,9],[191,5,191,6],[191,7,191,9],[192,5,192,6],[192,7,192,9],[193,1,193,9],[194,1,194,9],[195,1,195,9],[196,7,196,9],[197,7,197,9],[198,1,198,9],[199,1,200,1],[199,2,200,3],[199,4,200,6],[199,7,204,9],[201,2,201,3],[201,4,201,6],[202,1,203,1],[202,2,203,3],[202,4,203,6],[204,2,204,3],[204,4,204,6],[205,1,205,9]]}
[]
[null,"ЧЕМПИОНАТ",{"$nulls":3},"Инфраструктурный лист - документ, включающий в себя исчерпывающий перечнь оборудования, инструментов, расходных материалов и СИЗ для организации и проведения Региональных чемпионатов. Регион вправе проводить Региональные этапы чемпионатов как на оборудовании для Финала, так и на обрудовании являющееся актуальным на территории региона.  В графе \"С\" указывается оборудование, котрое призвано обеспечить выполнение задания в рамках трудовых функций специалиста. В графе \"D\" указываются минимальные требования к оборудованию для выполнения трудовых функций. В графе \"Е\" указываются единицы измерения. В графе \"F\" указывается количество единиц оборудования на 1 Рабочее место. В графе \"G\" указывается количество един оборудования на всех аккредитованных участников и экспертов. Расходные материалы, инструмент и СИЗ не могут быть меньше количества аккредитованных участников и экспертов, Расходные материалы, инструмент и СИЗ расчитываются строго с учётом аккредитованных лиц на площадке. Графы Н и I заполняются в том слуучае, если наименование оборудования и/или его технические характеристики отличны от наименования оборудования и технических характеристик, указанных в графах С и D. В графе J отражается комментарий (обоснование) отличия (почему используется иное оборудование и/или технические характеристики)",null,null,"УТВЕРЖДАЮ                                                                                ПРЕДСЕДАТЕЛЬ СК"]
[null,"Сроки проведения "]
[null,"Место проведения"]
[null,"НАИМЕНОВАНИЕ КОМПЕТЕНЦИИ",null,"Лабораторный медицинский анализ (Юниоры от 14 лет)",{"$nulls":4},"                             ФИО                                                   подпись"]
[null,"Главный эксперт"]
[null,"Технический эксперт",{"$nulls":6},"Рассмотрено / Согласовано                                                                   Советом компетенции                                                                                                                                                                                                                                                                                                                                                   дата согласования"]
[null,"Количество экспертов (в том числе с главным экспертом)"]
[null,"Количество конкурсантов (команд)",null,6]
[null,"Количество рабочих мест"]
[null,"Общая площадь застройки компетенции"]
[]
[]
[null,"РАБОЧАЯ ПЛОЩАДКА КОНКУРСАНТОВ"]
[null,"ОСНОВНОЕ ОБОРУДОВАНИЕ  (НА 1 КОНКУРСАНТА \\ КОМАНДУ)",{"$nulls":5},"Вариативная часть для РЧ"]
[null,"№","Наименование позиции","Технические характеристики ","Ед. измерения","Кол-во на 1 РМ","Кол-во общее","Наименование позиции","Технические характеристики","Комментарий/обоснование"]
[null,1]
[null,2]
[null,3]
[null,4]
[null,5]
[null,"ВСПОМАГАТЕЛЬНОЕ ОБОРУДОВАНИЕ (НА 1 КОНКУРСАНТА \\ КОМАНДУ)",{"$nulls":5},"Вариативная часть для РЧ"]
[null,"№","Наименование позиции","Технические характеристики ","Ед. измерения","Кол-во на 1 РМ","Кол-во общее","Наименование позиции","Технические характеристики","Комментарий/обоснование"]
[null,1]
[null,"ПРОГРАММНОЕ ОБЕСПЕЧЕНИЕ (НА 1 КОНКУРСАНТА \\ КОМАНДУ)",{"$nulls":5},"Вариативная часть для РЧ"]
[null,"№","Наименование позиции"," Тех. описание позиции","Ед. измерения","Кол-во на 1 РМ","Кол-во общее","Наименование позиции","Технические характеристики","Комментарий/обоснование"]
[null,1]
[null,"МЕБЕЛЬ И ФУРНИТУРА (НА 1 КОНКУРСАНТА \\ КОМАНДУ)",{"$nulls":5},"Вариативная часть для РЧ"]
[null,"№","Наименование позиции"," Тех. описание позиции","Ед. измерения","Кол-во    1 РМ","Кол-во общее","НЕ ПРИМЕНИМО"]
[null,1]
[null,"РАСХОДНЫЕ МАТЕРИАЛЫ (НА 1 КОНКУРСАНТА \\ КОМАНДУ)",{"$nulls":5}," Вариативная часть для РЧ"]
[null,"№","Наименование позиции"," Тех. описание позиции","Ед. измерения","Кол-во    1 РМ","Кол-во общее","НЕ ПРИМЕНИМО"]
[null,1]
[null,2]
[null,3]
[null,4]
[null,5]
[null,6]
[null,"СРЕДСТВА ИНДИВИДУАЛЬНОЙ ЗАЩИТЫ (НА 1 КОНКУРСАНТА \\ КОМАНДУ)",{"$nulls":5}," Вариативная часть для РЧ"]
[null,"№","Наименование позиции"," Тех. описание позиции","Ед. измерения","Кол-во            1 РМ","Кол-во общее","НЕ ПРИМЕНИМО"]
[null,1]
[null,2]
[null,"ДОПОЛНИТЕЛЬНЫЕ ТРЕБОВАНИЯ К ОБЕСПЕЧЕНИЮ КОНКУРСНЫХ ПЛОЩАДОК КОМАНД (КОММУНИКАЦИИ, ПОДКЛЮЧЕНИЯ, ОСВЕЩЕНИЕ И Т.П.)"]
[null,"№","Требование (описание)",{"$nulls":4},"Комментарий"]
[null,1]
[]
[null,"ОБЩАЯ РАБОЧАЯ ПЛОЩАДКА КОНКУРСАНТОВ"]
[null,"ОБОРУДОВАНИЕ И ИНСТРУМЕНТЫ (НА ВСЕХ КОНКУРСАНТОВ \\ КОМАНД)"]
[null,"№","Наименование позиции"," Тех. описание позиции","Ед. измерения","Кол-во",null,"Комментарий"]
[null,1,"Микроскоп  медицинский прямой СХ 31 (Olympus) для лабораторных исследований. ","Современный цифровой микроскоп, со специальной программой для биологических, лабораторных и иных исследований, качественного анализа крови (гемосканирование). Оснащен универсальной оптической системой, настроенной на бесконечность. Встроенный галогеновый осветитель.","шт.",1]
[null,2,"Видеокамера (цветная цифровая камера VidejZavr Standart VZ C 31 S в комплекте с VZ  ПО Catalog)","Камера Д/Н, 1/2.5\" HITACHI HCPS CCD, 942х672, 560 ТВЛ, 0,03 лк (цвет)/0,0003 лк (ч/б) @ F1.2, механический ИК-фильтр,DSP S.I.E 2, ATW, HLC, 3D-DNR, WDR, детектор движения, 12 V DC","шт.",1]
[null,3,"Ноутбук  ",";экран: 15.6\"; разрешение экрана: 1920×1080; процессор: Intel Core i3 7100U; частота: 2.4 ГГц; память: 8192 Мб, DDR4; HDD: 1000 Гб, 5400 об/мин; SSD: 128 Гб; nVidia GeForce 940MX — 2048 Мб; WiFi; Bluetooth; HDMI; WEB-камера; Endless","шт.",1]
[null,4,"Дезар-4","Крепления настенного типа.\nНаличие счетчика времени.\nПрименяется для борьбы с атипичной пневмонией.\nБактерицидная эффективность составляет 99,0%.\n2 лампы мощностью по 15 Вт.\nПредназначен для установки в помещениях II-III типа.\nЭксплуатационный срок ламп: 8000 ч.\nПроизводительность: 70 м3/ч.\nПотребляемая мощность: 150 Вт.\nМощность звука: 39 Дб.\nГолубой цвет.\nПараметры: 890х370х140 мм.\nВес: 6,15 кг.","шт.",1]
[null,5,"Гигрометр психрометрический ВИТ-1","Прибор для измерения температуры и влажности в помещении","шт.",1]
[null,6,"Ламинарный шкаф","Модель ACB–4A1 ACB–6A1\nНоминальный размер, м 1,2 1,8\nВнешние\nразмеры,\nш×г×в Без подставки 1340×629,5×983 1950×629,5×983\nС опциональной подставкой высотой 711 мм 1340×629,5×1694 1950×629,5×1694\nРазмеры рабочей зоны, ш×г×в, мм 1270×544×570 1880×544×570\nПлощадь рабочей зоны, м2 0,69 1,02\nСкорость воздушного потока при заводских установках 0,30 м/с\nВоздушный поток, м3/ч 678 1004\nТипичная эффективность фильтра HEPA 99,99% для частиц размером 0,3 мкм\nУровень шума согласно IEST–RP–CC002.2, дБ* <61 <63\nОсвещенность на нулевом уровне >800 лк\nКорпус гальванизированная сталь марки 18 1,2 мм, покрытие из белой порошковой эмали с последующей термообработкой\nРабочая зона нержавеющая сталь марки 304 1,2 мм, обработка 4B\nБоковые стенки Закалённое стекло\nПотребляемая мощность, Вт 350 600\nПотребляемый ток, А 1,8 3,2\nТок в розетках, А 5 5\nОбщий ток, А 6,8 8,2\nТепловыделение, Вт 123 204\nВес нетто, кг 140 182\nВес брутто, кг 178 231\nМаксимальные транспортные размеры, ш×г×в, мм 1430×749,5×1233 2110×749,5×1233\nМаксимальный транспортный объем, м3 1,32 1,95\nЭлектропитание ~ 220–240 В, 50 Гц, 1 фаза","шт.",1]
[null,7,"Центрифуга лабораторная","Диапазон скорости вращения 1000,1500,2000,2700 об/мин\nШаг установки скорости 4 предустановленных скорости\nМакс. относительное центробежное ускорение (RCF) 1350 G\nСменные роторы Нет\nМаксимальное количество мест 10\nМаксимальный размер применяемых пробирок 18х150 мм\nМаксимальный объем применяемых пробирок 15 мл\nРегулировка времени работы От 1 до 99 мин\nДатчик дисбаланса Нет\nДвухрежимная регулировка скорости (RPM/RCF) Нет\nГабаритные размеры 450х400х265 мм\nМасса 10 кг\nГабаритные размеры в упаковке 465х485х475 мм\nМасса в упаковке 12 кг\nПотребляемая мощность 80 Ватт\nПитание 220 В / 50 Гц","шт.",1]
[null,"МЕБЕЛЬ И ФУРНИТУРА (НА ВСЕХ КОНКУРСАНТОВ \\ КОМАНД)"]
[null,"№","Наименование позиции"," Тех. описание позиции","Ед. измерения","Кол-во",null,"Комментарий"]
[null,1,"Лабораторный стол СКДЛ-1-3/1-4 ","Стол лабораторный СКДЛ 1-3 с каркасом из анодированного алюминиевого профиля","шт.",6]
[null,2,"Лабораторный стул газ-лифт","Элементы каркаса выполнены из прочных металлических конструкций, окрашенных эпоксидной порошковой краской черного цвета.\nСтул обладает надежным основанием, снабжённым пятью мебельными колесами.\nВ обивке сиденья использована искусственная кожа и поролоновая подкладка.\nРегулировка высота табурета осуществляется посредством механизма газ-лифта Подробнее: https://rcamed.ru/p91336798-stul-meditsinskij-laboratornyj.html","шт.",6]
[null,"РАСХОДНЫЕ МАТЕРИАЛЫ (НА ВСЕХ КОНКУРСАНТОВ \\ КОМАНД)"]
[null,"№","Наименование позиции"," Тех. описание позиции","Ед. измерения","Кол-во",null,"Комментарий"]
[null,1,"Пробирки центрифужные градуировнные","Объем.................... 10 мл\n\nЦена деления......  0,1 мл\n\nДопустимая погрешность.........±0,1 мл\n\nНаружный диаметр..........17,0±0,5 мм\n\nВысота...................... 105+5-1 мм\n","шт.",150]
[null,{"$f":"1+B63","v":2},"Контейнер  для сбора и дезинфекции использованных изделий, перчаток и т.д. (отходов класса Б) на 1л","Полный объем – 1,6±0,08 л. \nПолезный объем – 1 л. \nГабаритные размеры контейнера (длина x ширина x высота): 223х149х91 мм. \nМасса контейнера: 0,53 кг. ","шт.",6]
[null,{"$f":"1+B64","v":3},"Дезинфицирующий раствор  с дозатором на 200 мл ","Дезинфицирующее средство предназначено в качестве кожного антисептика для обработки рук","шт.",1]
[null,4,"Емкость-контейнер для сбора острого одноразового инструментария","Ёмкость-контейнер состоит из ведра, крышки, заглушки и этикетки.","шт.",6]
[null,5,"Спиртовка"," Горелка для жидкого топлива, содержащая резервуар для спирта, снабжённая крышкой, через которую пропущен фитиль, нижний конец которого размещён в резервуаре, а верхний конец вне его.","шт.",1]
[null,6,"Предметные стекла","Предметные стекла незаменимы при изготовлении микропрепаратов для изучения под микроскопом. Они применяются для размещения тончайшего среза изучаемого образца. Предметные стекла имеют однородную структуру и изготовлены из стекла высокой прозрачности.","упаковка",1]
[null,7,"Шлифованные стекла","Предметные стекла со шлифованными краями предназначены для самостоятельного изготовления микропрепаратов. Они изготовлены из качественного стекла по современным технологиям, обладают высокой степенью прозрачности. Равномерная толщина предметного стекла по всей длине позволяет исследовать даже большие микропрепараты без дополнительной подстройки резкости изображения.","упаковка",1]
[null,8,"Укладка-контейнер  на 50 пробирок или 10 флаконов -250 мл  или аналог","Контейнер укладка для транспортировки пробирок представляют собой контейнер с плотно прилегающей крышкой.","шт.",1]
[null,9,"Петли полистироловые бактериологические на 5мкл, 1мкл, 10мкл.","Петли бактериологические перевивочные пластиковые стерильные. Петли бактериологические изготовлены из полистирола, упакованы и стерилизованы этилендиоксидом или радиационно. ","упаковка",1]
[null,10,"Дезинфицирующие средства  1л с инструкцией","Дезинфицирующие средства обладают высокой антимикробной активностью в отношении грамотрицательных и грамположительных (включая микобактерии туберкулеза) микроорганизмов, Инструкция по преминению распечатывается организаторами площадки с интернет ресурса.","шт.",1]
[null,11,"Пакеты ПЭ для сбора и утилизации медицинских отходов класса А и Б ( объем 5л.)","Имеют двойную спайку на дне (двойной донный шов) и оснащаются специальными стяжками, которые позволяют быстро и эффективно герметизировать пакеты после их заполнения, специальные информационные окна на пакете (или бирки) упрощают процесс маркировки.","шт.",10]
[null,12,"Корзина для отходов класса А (10л.)","корзина белого цвета","шт.",5]
[null,13,"Спирт 96 %","Этиловый спирт 96% представляет собой лёгкую прозрачную жидкость, обладающую характерным не очень приятным запахом и очень жгучим вкусом.","флакон",1]
[null,14,"Покровные стекла ","В упаковке 100 штук.  Разных размеров по 1 упаковке.","упаковка",1]
[null,15,"Стеклянные палочки ","Палочки предназначенные для перемешивания жидкости","шт.",2]
[null,16,"Планшеты (папка для микропрепаратов)","Планшеты для хранения и транспортировки микропрепаратов емкостью от 25 до 100 стекол изготовлены из полимерных материалов высокой механической прочности.","шт.",1]
[null,17,"Масло иммерсионное  ","Иммерсионное масло иммерсионное масло кедровое масло с показателем преломления, близким к стеклу (n = 1,5). Используется в микроскопии с целью увеличения числовой апертуры объектива за счет уменьшения потерь света","шт.",1]
[null,18,"Марлевые салфетки  размером: 10 х 10 см. - сложены аналогично, из полоски марли т.е. номинальный размер 10 х 10 см.) нестерильная упакована в запаянный герметичный бумажный пакет и таких пакетов в кол-ве по 10 шт сложены в картонную упаковку ","Марлевые салфетки приготовленные из медицинской марли","шт.",50]
[null,19,"Стирильный полимерный контейнер.","Одноразовый контейнер для сбора биологического материала","шт.",6]
[null,20,"Дезинфицирующие салфетки  для  дезинфекции рук. В банке с  дозатором 60 шт. салфеток.","В пластассовой упаковке 60 шт.","шт.",3]
[null,21,"Жидкое мыло с дозатором","Антибактериальное 500 мл флакон с дозатором","шт.",1]
[null,22,"Пинцет лабораторный","металлический","шт.",1]
[null,23,"Карандаш по стеклу или перманентный маркер","на усмотрение организатора","шт.",2]
[null,24,"скошеный агар с \"чистой культурой\"","пробирки со средой агар -агар с проросшей \"чистой культурой\". Готовится непосредственно организаторами площадки","шт.",6]
[null,25,"пробирки со средой Гисса","пробирки со средой Гисса. Готовится непосредственно организаторами площадки. Для приготовления берется с 1 углеводом (глюкоза или лактоза или др)","шт.",6]
[null,26,"журналы для регистрации ","журнал для регистрации образцов общеклинической лаборатории и бракеражный журнал. Готовится непосредственно организаторами площадки.","шт.",12]
[null,27,"салфетки спиртовые","спиртовые салфетки 60*30 или 60*100 или 110*125.","шт.",50]
[null,28,"Спирт 70%","спирт этиловый.","шт.",1]
[null,29,"Бланк для микроскопии гематологических препаратов с микрофотографиями клеток крови","Составляются организатором площадки. ","шт.",6]
[null,30,"Бланки для микроскопии гистологических препаратов с микрофотографиями тканей органов","Составляются организатором площадки. ","шт.",6]
[null,31,"Бланки для микроскопии микробиологических препаратов с микрофотографиями бактериальных клеток","Составляются организатором площадки. ","шт.",6]
[null,32,"Бланки для исследования физических факторов воздушной среды","Составляются организатором площадки. ","шт.",6]
[null,33,"Бланк для приготовление дезинфицирующего .раствора","Составляются организатором площадки. ","шт.",6]
[null,34,"Окрашенный мазок крови для микроскопии","Предоставляется независимой клинической лаборатории в конверте с эталоном ответа.","шт.",1]
[null,35,"Окрашенный микробиологический препарат ","Предоставляется независимой микробиологической лаборатории в конверте с эталоном ответа. ","шт.",1]
[null,36,"Окрашенные препараты по гистологии","Предоставляется независимой гистологической лаборатории в конверте с эталоном ответа.","шт.",2]
[null,37,"Стикер с липким краем для заполнения формы приготовленного дезинфицирующего раствора","стикеры для заполнения","шт.",1]
[null,38,"Промывалка лабораторная","на усмотрение организатора","шт.",1]
[null,39,"Бланк результата биохимического исследования","бланка результата в производной форме. На усмотрения организатора","шт.",6]
[null,40,"Дозатор 1-5 мл","Механический дозатор, одноканальный, переменного объема","шт.",2]
[null,41,"Дозатор 100-1000 мкл","Механический дозатор, одноканальный, переменного объема","шт.",2]
[null,42,"Наконечник 1-кан/96 шт. в штат. 100-1000 мкл в штативе","Эти наконечники предназначены для одноканальных дозаторов и для многоканальных дозаторов\nИсполнения: \n2 - 300 мкл\n100 - 1 000 мкл\n1 000 - 5 000 мкл\n","упаковка",2]
[null,43,"Наконечник 1-кан/96 шт. в штат. 1-5 мл в штативе","Эти наконечники предназначены для одноканальных дозаторов и для многоканальных дозаторов\nИсполнения: \n2 - 300 мкл\n100 - 1 000 мкл\n1 000 - 5 000 мкл\n","упаковка",2]
[null,44,"Штатив для дозаторов","Универсальный штатив-стойка для дозаторов","шт.",4]
[null,45,"Штатив для центрифужных пробирок на 10 гнезд","Штатив для пробирок - вид лабораторного оборудование, которое применяется для одновременного размещения нескольких емкостей различного объема.","шт.",5]
[null,46,"Стакан химический на 50-100 мл","Стеклянный","шт.",5]
[null,47,"Колба коническая стеклянная плоскодонная на 250 мл с  пробкой","Стеклянная","шт.",2]
[null,48,"Дистиллированная вода ","Дистиллированная вода – это такая вода, которая очищена от органических и неорганических примесей.","л",5]
[null,49,"Набор реагентов для проведения биохимического исследования","Используется имитация растворов. Допускается использовать вместо растворов дисттиллированную воду","шт.",2]
[null,50,"Маркер по стеклу","На усмотрение организатора","шт.",2]
[null,51,"Аптечка для оказания медицинской помощи при аварийных ситуациях","Аптечка для оказания медицинской помощи при аварийных ситуациях","шт.",1]
[null,"СРЕДСТВА ИНДИВИДУАЛЬНОЙ ЗАЩИТЫ (НА ВСЕХ КОНКУРСАНТОВ \\ КОМАНД)"]
[null,"№","Наименование позиции"," Тех. описание позиции","Ед. измерения","Кол-во",null,"Комментарий"]
[null,1,"Маски медицинские ","Двухслойные. В упаковке 100 шт.","упаковка",1]
[null,2,"Медицинские перчатки S, M, L","Перчатки из нитрила являются самым современным и надежным видом одноразовых перчаток.\nОни лишены недостатков виниловых и латексных перчаток: прочны, эластичны, устойчивы к агрессивной среде и проколам. При этом они гипоаллергенны. В упаковке 100 пар","упаковка",1]
[null,3,"Очки защитные","Габариты, мм: 170 x 70 x 40","шт.",3]
[null,"ДОПОЛНИТЕЛЬНЫЕ ТРЕБОВАНИЯ К ОБЕСПЕЧЕНИЮ ОБЩЕЙ РАБОЧЕЙ ПЛОЩАДКЕ КОНКУРСАНТОВ (КОММУНИКАЦИИ, ПОДКЛЮЧЕНИЯ, ОСВЕЩЕНИЕ И Т.П.)"]
[null,"№","Требование (описание)",null,"Ед. измерения","Кол-во",null,"Комментарий"]
[null,1,"Электричество","380 вольт , 220-230, мощность 9,5 кВт"]
[null,2,"Водопровод ","Горячая и холодная"]
[null,3,"Напольное покрытие (ленолиум) ","моющаяся поверхность "]
[null,4,"Огнетушитель углекислотный ОУ-1","Торговая марка: ПОЖТЕХНИКА\nМесто использования: в помещении\nНаполнение: углекислотный\nОгнетушащая способность (площадь): 0.4 кв.м","шт.",1]
[null,5,"Аптечка для оказания медицинской помощи при аварийных ситуациях","Аптечка для оказания медицинской помощи при аварийных ситуациях","шт.",1]
[]
[null,"БРИФИНГ-ЗОНА"]
[null,"ОБОРУДОВАНИЕ И ИНСТРУМЕНТЫ (НА ВСЕХ КОНКУРСАНТОВ, ЭКСПЕРТОВ)"]
[null,"№","Наименование позиции"," Тех. описание позиции","Ед. измерения","Кол-во",null,"Комментарий"]
[null,1]
[null,"МЕБЕЛЬ И ФУРНИТУРА (НА ВСЕХ КОНКУРСАНТОВ, ЭКСПЕРТОВ)"]
[null,"№","Наименование позиции"," Тех. описание позиции","Ед. измерения","Кол-во",null,"Комментарий"]
[null,1]
[null,"ДОПОЛНИТЕЛЬНЫЕ ТРЕБОВАНИЯ К ОБЕСПЕЧЕНИЮ БРИФИНГ-ЗОНЫ (КОММУНИКАЦИИ, ПОДКЛЮЧЕНИЯ, ОСВЕЩЕНИЕ И Т.П.)"]
[null,"№","Требование (описание)",{"$nulls":4},"Комментарий"]
[null,1]
[]
[]
[null,"КОМНАТА ЭКСПЕРТОВ"]
[null,"ОБОРУДОВАНИЕ И ИНСТРУМЕНТЫ (НА ВСЕХ ЭКСПЕРТОВ)"]
[null,"№","Наименование позиции"," Тех. описание позиции","Ед. измерения","Кол-во",null,"Комментарий"]
[null,1]
[null,"МЕБЕЛЬ И ФУРНИТУРА (НА ВСЕХ ЭКСПЕРТОВ)"]
[null,"№","Наименование позиции"," Тех. описание позиции","Ед. измерения","Кол-во",null,"Комментарий"]
[null,1,"Стол ","стол компьютерный для офиса","шт.",10]
[null,2,"Корзина для мусора","Корзина прямоугольная для офисных помещений. ","шт.",1]
[null,3,"Шкаф ","Шкаф для личных вещей","шт.",1]
[null,4,"Вешалка","Вешалка 153х74х179 для личных вещей","шт.",10]
[null,5,"Стул ","Стул офисный \"Стандарт\"","шт.",12]
[null,"ДОПОЛНИТЕЛЬНЫЕ ТРЕБОВАНИЯ К ОБЕСПЕЧЕНИЮ КОМНАТЫ ЭКСПЕРТОВ (КОММУНИКАЦИИ, ПОДКЛЮЧЕНИЯ, ОСВЕЩЕНИЕ И Т.П.)"]
[null,"№","Требование (описание)",{"$nulls":4},"Комментарий"]
[null,1]
[]
[null,"КОМНАТА ГЛАВНОГО ЭКСПЕРТА"]
[null,"ОБОРУДОВАНИЕ И ИНСТРУМЕНТЫ (ДЛЯ ГЭ)"]
[null,"№","Наименование позиции"," Тех. описание позиции","Ед. измерения","Кол-во",null,"Комментарий"]
[null,1,"Ноутбук  ",";экран: 15.6\"; разрешение экрана: 1920×1080; процессор: Intel Core i3 7100U; частота: 2.4 ГГц; память: 8192 Мб, DDR4; HDD: 1000 Гб, 5400 об/мин; SSD: 128 Гб; nVidia GeForce 940MX — 2048 Мб; WiFi; Bluetooth; HDMI; WEB-камера; Endless  или аналоги","шт.",1]
[null,2,"Принтер","На усмотрении организации площадки.","шт.",1]
[null,"МЕБЕЛЬ И ФУРНИТУРА (ДЛЯ ГЭ)"]
[null,"№","Наименование позиции"," Тех. описание позиции","Ед. измерения","Кол-во",null,"Комментарий"]
[null,1,"Стеллаж","Бытовые стеллажи, выпускаемые для офиса и других помещений. ","шт.",1]
[null,2,"Стол ","стол компьютерный для офиса","шт.",1]
[null,3,"Корзина для мусора","Корзина прямоугольная для офисных помещений. ","шт.",1]
[null,4,"Стул ","Стул офисный \"Стандарт\"","шт.",1]
[null,5,"Шкаф ","Шкаф для личных вещей","шт.",1]
[null,6,"Вешалка","Вешалка 153х74х179 для личных вещей","шт.",1]
[null,"ДОПОЛНИТЕЛЬНЫЕ ТРЕБОВАНИЯ К ОБЕСПЕЧЕНИЮ КОМНАТЫ ГЛАВНОГО ЭКСПЕРТА (КОММУНИКАЦИИ, ПОДКЛЮЧЕНИЯ, ОСВЕЩЕНИЕ И Т.П.)"]
[null,"№","Требование (описание)",{"$nulls":4},"Комментарий"]
[null,1,"Интернет"]
[]
[null,"КОМНАТА КОНКУРСАНТОВ"]
[null,"ОБОРУДОВАНИЕ И ИНСТРУМЕНТЫ  (НА ВСЕХ КОНКУРСАНТОВ)"]
[null,"№","Наименование позиции"," Тех. описание позиции","Ед. измерения","Кол-во",null,"Комментарий"]
[null,1]
[null,"МЕБЕЛЬ И ФУРНИТУРА (НА ВСЕХ КОНКУРСАНТОВ)"]
[null,"№","Наименование позиции"," Тех. описание позиции","Ед. измерения","Кол-во",null,"Комментарий"]
[null,1,"Стол ","стол компьютерный для офиса","шт.",5]
[null,2,"Корзина для мусора","Корзина прямоугольная для офисных помещений. ","шт.",1]
[null,3,"Шкаф ","Шкаф для личных вещей","шт.",1]
[null,4,"Вешалка","Вешалка 153х74х179 для личных вещей","шт.",10]
[null,5,"Стул ","Стул офисный \"Стандарт\"","шт.",10]
[null,"ДОПОЛНИТЕЛЬНЫЕ ТРЕБОВАНИЯ К ОБЕСПЕЧЕНИЮ КОМНАТЫ КОНКУРСАНТОВ (КОММУНИКАЦИИ, ПОДКЛЮЧЕНИЯ, ОСВЕЩЕНИЕ И Т.П.)"]
[null,"№","Требование (описание)",{"$nulls":4},"Комментарий"]
[null,1]
[]
[]
[null,"КАНЦЕЛЯРИЯ НА КОМПЕТЕНЦИЮ (НА ВСЕХ КОНКУРСАНТОВ,  ЭКСПЕРТОВ)"]
[null,"№","Наименование позиции"," Тех. описание позиции","Ед. измерения","Кол-во",null,"Комментарий"]
[null,1,"бумага А4","на усмотрение организатора","упаковка",5]
[null,2,"скрепки канцелярские","на усмотрение организатора","упаковка",2]
[null,3,"степлер со скобами","на усмотрение организатора","упаковка",2]
[null,4,"ручка","на усмотрение организатора","упаковка",10]
[null,5,"фаилы А4","на усмотрение организатора","упаковка",1]
[]
[null,"\"ТУЛБОКС\" РЕКОМЕНДОВАННЫЙ ИНСТРУМЕНТ И ПРИНАДЛЕЖНОСТИ, КОТОРЫЕ ДОЛЖНА ПРИВЕЗТИ С СОБОЙ КОМАНДА (если применимо)"]
[null,"НА 1 КОНКУРСАНТА \\ КОМАНДУ"]
[null,"№","Наименование позиции"," Тех. описание позиции","Ед. измерения","Кол-во","Кол-во","Комментарий"]
[null,1]
[]
[null,null,"Главный Эксперт чемпионата"]
[]
[null,null,"                       (ФИО)",null,"      (подпись)                     (дата)"]
[null,null,"Технический администратор площадки "]
[]
[null,null,"                   (ФИО)",null,"      (подпись)                 (дата)"]

{"sheet":"КО А","index":2,"n_rows":27,"n_cols":9,"rows_kept":27}
["Код","Подкритерий","Тип аспекта","Аспект","Судейский бал","Методика проверки аспекта","Требования или номинальный размер","Проф. Задача","Макс. Балл"]
["A1","Регистрация поступившего в лабораторию материала для исследования",{"$nulls":6},{"$f":"SUM(I3:I9)","v":{"v":2.6,"d":"2.60"}}]
[null,null,"И"," Надеть СИЗ",null,"Вычесть все баллы, если не выполнено",null,1,{"v":0.2,"d":"0.20"}]
[null,null,"И","Приготовить рабочее место: в соответствии с требованием сан-дез режима:  емкость с дезинфицирующим раствором, салфетки для обработки поверхностей, спрей с дезраствором, кювета с марлей протитанная дезраствором",null,"Вычесть 0,1 балл за любой отсутствующий элемент",null,1,{"v":0.4,"d":"0.40"}]
[null,null,"И","Приготовить рабочее место в соответствии с методикой исследования: журналы, канцтовары.",null,"Вычесть 0,1 балл за любой отсутствующий элемент",null,1,{"v":0.2,"d":"0.20"}]
[null,null,"И"," Корректная оценка качества поступившего в лабораторию биоматериала.",null,"Вычесть 0,1 балл за любой отсутствующий элемент",null,1,{"v":1,"d":"1.00"}]
[null,null,"И","Корректный перенос данных пациента из направления в журнал регистрации медицинских лабораторных исследований. Корректное оформление и грамотная формулировка отказа в исследовании материала в случае его несоответствия.",null,"Вычесть 0,1 балл за любой отсутствующий элемент",null,1,{"v":0.5,"d":"0.50"}]
[null,null,"И","Завершение работы: приведение рабочего места в порядок.",null,"Вычесть все баллы, если не выполнено",null,1,{"v":0.2,"d":"0.20"}]
[null,null,"И","Завершение работы: утилизация средств защиты",null,"Вычесть все баллы, если не выполнено",null,1,{"v":0.1,"d":"0.10"}]
["A2","Провести комплекс мероприятий по предотвращению аварийной ситуации на рабочем месте",{"$nulls":6},{"$f":"SUM(I11:I14)","v":{"v":2.4000000000000004,"d":"2.40"}}]
[null,null,"И","Подготовить рабочее место.",null,"Вычесть все баллы, если не выполнено",null,1,{"v":0.1,"d":"0.10"}]
[null,null,"И","Продемонстрировать комплекс мероприятий по устранению аварийной ситуации.",null,"Вычесть все баллы, если не выполнено",null,1,{"v":2,"d":"2.00"}]
[null,null,"И"," Завершить работу, приведение рабочего места в порядок",null,"Вычесть все баллы, если не выполнено",null,1,{"v":0.2,"d":"0.20"}]
[null,null,"И"," Умение организовывать свою деятельность.",null,"Вычесть все баллы, если не выполнено",null,1,{"v":0.1,"d":"0.10"}]
["A3","Приготовление дезинфицирующего раствора",{"$nulls":6},{"$f":"SUM(I16:I26)","v":{"v":4.999999999999998,"d":"5.00"}}]
[null,null,"И"," Изучить инструкцию по применению дезинфицирующего средства и задание.",null,"Вычесть все баллы, если не выполнено",null,1,{"v":0.5,"d":"0.50"}]
[null,null,"И","Рассчитать объем / количество (мл, г, таблетки) дезинфицирующего средства для приготовления рабочего раствора. Представить результаты расчетов экспертам.",null,"Вычесть все баллы, если не выполнено",null,1,{"v":1,"d":"1.00"}]
[null,null,"И","Надеть СИЗ",null,"Вычесть все баллы, если не выполнено",null,1,{"v":0.2,"d":"0.20"}]
[null,null,"И","Подготовить рабочее место для приготовления раствора дезинфицирующего средства",null,"Вычесть 0,1 балл за любой отсутствующий элемент",null,1,{"v":0.5,"d":"0.50"}]
[null,null,"И"," Приготовить рабочий раствор дезинфицирующего средства",null,"Вычесть все баллы, если не выполнено",null,1,{"v":2,"d":"2.00"}]
[null,null,"И","Оформить бланк, указав в бланке название средства",null,"Вычесть все баллы, если не выполнено",null,1,{"v":0.1,"d":"0.10"}]
[null,null,"И","Оформить бланк, указав концентрацию",null,"Вычесть все баллы, если не выполнено",null,1,{"v":0.1,"d":"0.10"}]
[null,null,"И","Оформить бланк, указав дату изготовления",null,"Вычесть все баллы, если не выполнено",null,1,{"v":0.1,"d":"0.10"}]
[null,null,"И","Оформить бланк, указав срок годности ",null,"Вычесть все баллы, если не выполнено",null,1,{"v":0.1,"d":"0.10"}]
[null,null,"И","Оформить бланк, указав  ФИО лица приготовившего раствор с подписью. ",null,"Вычесть все баллы, если не выполнено",null,1,{"v":0.1,"d":"0.10"}]
[null,null,"И","Завершить работу. Убрать использованную посуду и дез. средства. Привести в порядок рабочее место.",null,"Вычесть 0,1 балл за любой отсутствующий элемент",null,1,{"v":0.3,"d":"0.30"}]
[{"$nulls":5},"Итого:",null,null,{"$f":"SUM(I3:I9,I11:I14,I16:I26)","v":{"v":9.999999999999998,"d":"10.00"}}]

{"sheet":"КО Б","index":3,"n_rows":43,"n_cols":9,"rows_kept":43}
["Код","Подкритерий","Тип аспекта","Аспект","Судейский бал","Методика проверки аспекта","Требования или номинальный размер","Проф. Задача","Макс. Балл"]
["Б1","Приготовление нативного препарата из предложенного биологического материала, участие в контроле качества",{"$nulls":6},{"$f":"SUM(I3:I22)","v":{"v":7.2,"d":"7.20"}}]
[null,null,"И","Надеть СИЗ",null,"Вычесть все баллы, если не выполнено",null,2,{"v":0.3,"d":"0.30"}]
[null,null,"И","Подготовить рабочее место для получения осадка мочи: две центрифужные пробирки; штатив для пробирок; маркер; образец мочи; центрифуга.",null,"Вычесть 0,1 балл за любой отсутствующий элемент",null,2,{"v":0.5,"d":"0.50"}]
[null,null,"И","Промаркировать пробирку.",null,"Вычесть все баллы, если не выполнено",null,2,{"v":0.3,"d":"0.30"}]
[null,null,"И","Перемешать мочу путем взбалтывания",null,"Вычесть все баллы, если не выполнено",null,2,{"v":0.3,"d":"0.30"}]
[null,null,"И","Налить в пробирку примерно10-12 мл мочи,не доходя 1,0-1,5 см до широкого края пробирки.",null,"Вычесть все баллы, если не выполнено",null,2,{"v":0.2,"d":"0.20"}]
[null,null,"И","Выбрать уравновешивающий раствор в объеме, соответствующий объему предложенной жидкости.Установить пробирки в штатив для пробирок. ",null,"Вычесть все баллы, если не выполнено",null,2,{"v":0.3,"d":"0.30"}]
[null,null,"И","Открыть крышку центрифуги и установить пробирки с биоматериалом и уравновешивающим раствором в диаметрально противоположные гнезда пробиркодержателя центрифуги.",null,"Вычесть все баллы, если не выполнено/Вычесть баллы и остановить работу, если допущена грубая ошибка",null,2,{"v":0.2,"d":"0.20"}]
[null,null,"И","Закрыть крышку. При этом должен быть слышен \"щелчок\" блокирующего устройства.",null,"Вычесть все баллы, если не выполнено",null,2,{"v":0.1,"d":"0.10"}]
[null,null,"И","Включить центрифугу нажатием на кнопку «СЕТЬ» на панели управления.",null,"Вычесть все баллы, если не выполнено",null,2,{"v":0.1,"d":"0.10"}]
[null,null,"И","Установить заданный режим центрифугирования (скорость вращения 1000 об/мин., время центрифугирования 5 мин.).",null,"Вычесть все баллы, если не выполнено",null,2,{"v":0.3,"d":"0.30"}]
[null,null,"И","Нажать на кнопку старт центрифугирования.",null,"Вычесть все баллы, если не выполнено",null,2,{"v":0.1,"d":"0.10"}]
[null,null,"И","По истечении заданного времени центрифуга остановится автоматически. Выключить питание с помощью сетевого выключателя.",null,"Вычесть все баллы, если не выполнено",null,2,{"v":0.1,"d":"0.10"}]
[null,null,"И","После полной остановки ротора открыть крышку центрифуги.Вынуть пробирки и установить их в штатив.Закрыть крышку центрифуги.",null,"Вычесть все баллы, если выполнено не верно.",null,2,{"v":0.1,"d":"0.10"}]
[null,null,"И","Подготовить рабочее место для приготовления нативного препарата: дозатор с наконечниками или пластмассовая пипетка; предметные стекла; покровные стекла; маркер; вода в стакане.\n",null,"Вычесть 0,1 балл за любой отсутствующий элемент",null,2,{"v":0.5,"d":"0.50"}]
[null,null,"И","Промаркировать предметное стекло.",null,"Вычесть все баллы, если не выполнено",null,2,{"v":0.2,"d":"0.20"}]
[null,null,"И","Не взбалтывая осадок, быстрым движением наклонить пробирку и слить надосадочную мочу  в емкость, оставляя только осадок.",null,"Вычесть все баллы, если не выполнено. При взбалтывании осадка, вычесть все баллы.",null,2,{"v":0.5,"d":"0.50"}]
[null,null,"И","Перемешать (суспензировать) осадок мочи",null,"Вычесть все баллы, если не выполнено",null,2,{"v":0.5,"d":"0.50"}]
[null,null,"И","Поместить каплю осадка мочи на предметное стекло и накрыть покровным стеклом",null,"Вычесть все баллы, если не выполнено",null,2,{"v":0.3,"d":"0.30"}]
[null,null,"И","Правильность приготовления нативного препарата. В правильно приготовленном препарате не должно быть пузырьков воздуха и избыток жидкости не должен выходить за пределы покровного стекла.",null,"Вычесть все баллы, если не выполнено",null,2,{"v":2,"d":"2.00"}]
[null,null,"И","Завершение работы: утилизация средств защиты и отработанного материала, приведение рабочего места в порядок, обработать поверхность стола дезинфицирующим раствором. ",null,"Вычесть 0,1 балл за любой отсутствующий элемент",null,2,{"v":0.3,"d":"0.30"}]
["Б2","Приготовление четырёх стандартных растворов и разведение исследуемого образца",{"$nulls":6},{"$f":"SUM(I24:I42)","v":{"v":22.8,"d":"22.80"}}]
[null,null,"И","Ознакомиться с заданием и инструкцией.",null,"Вычесть все баллы, если не выполнено",null,2,{"v":0.2,"d":"0.20"}]
[null,null,"И","Надеть СИЗ",null,"Вычесть все баллы, если не выполнено",null,2,{"v":0.2,"d":"0.20"}]
[null,null,"И","Подготовка рабочего места: дозаторов необходимого объема, наконечников, пробирок, штатива для дозаторов, штатива для пробирок,   емкости с дезинфицирующим раствором для утилизации отработанного материала,   маркера,   реагентов, исследуемого образца,   дезинфицирующего раствора, салфеток для обработки поверхности стола.",null,"Вычесть 0,2 балл за любой отсутствующий элемент",null,2,{"v":2,"d":"2.00"}]
[null,null,"И","Маркировка пробирок ",null,"Вычесть все баллы, если не выполнено",null,2,{"v":0.5,"d":"0.50"}]
[null,null,"И","Приготовление стандартного раствора №1 в соответствии с правилами прямого дозирования. ",null,"Вычесть 0,5 балла за любой неправильно выполненный элемент",null,2,{"v":2,"d":"2.00"}]
[null,null,"И","Перемешивание раствора с использованием дозатора ",null,"Вычесть все баллы, если выполнено неправильно",null,2,{"v":0.5,"d":"0.50"}]
[null,null,"И","Приготовление стандартного раствора №2  в соответствии с правилами прямого дозирования. ",null,"Вычесть 0,5 балла за любой неправильно выполненный элемент",null,2,{"v":2,"d":"2.00"}]
[null,null,"И","Перемешивание раствора с использованием дозатора ",null,"Вычесть все баллы, если выполнено неправильно",null,2,{"v":0.5,"d":"0.50"}]
[null,null,"И","Приготовление стандартного раствора №3  в соответствии с правилами прямого дозирования. ",null,"Вычесть 0,5 балла за любой неправильно выполненный элемент",null,2,{"v":2,"d":"2.00"}]
[null,null,"И","Перемешивание раствора с использованием дозатора ",null,"Вычесть все баллы, если выполнено неправильно",null,2,{"v":0.5,"d":"0.50"}]
[null,null,"И","Приготовление стандартного раствора №4 в соответствии с правилами прямого дозирования. ",null,"Вычесть 0,5 балла за любой неправильно выполненный элемент",null,2,{"v":2,"d":"2.00"}]
[null,null,"И","Перемешивание раствора с использованием дозатора ",null,"Вычесть все баллы, если не выполнено",null,2,{"v":0.5,"d":"0.50"}]
[null,null,"И","Подготовка и маркировка пробирок для разведения исследуемого образца ",null,"Вычесть все баллы, если не выполнено",null,2,{"v":0.5,"d":"0.50"}]
[null,null,"И","Внесение в пробирки Реагента - разбавителя",null,"Вычесть 0,5 балла за любой неправильно выполненный элемент",null,2,{"v":2,"d":"2.00"}]
[null,null,"И","Внесение  в пробирку №1   исследуемого образца в соответствии с правилами дозирования,  перемешивание с Реагентом –разбавителем ",null,"Вычесть 0,5 балла за любой неправильно выполненный элемент",null,2,{"v":2,"d":"2.00"}]
[null,null,"И"," Проведение разведения исследуемого образца в пробирках, перемешивание в каждой пробирке",null,"Вычесть 0,5 балла за любой неправильно выполненный элемент",null,2,{"v":2,"d":"2.00"}]
[null,null,"И","Правильность внесения в таблицу полученного разведения исследуемого образца в  каждой пробирке.",null,"Вычесть 0,4 балла за любой неправильно выполненный элемент",null,2,{"v":2,"d":"2.00"}]
[null,null,"И","Рациональное использование расходных материалов,  времени проведения исследования",null,"Вычесть 0,4  балла за нерациональное использование расходных материалов и времени проведения исследования   ",null,2,{"v":0.8,"d":"0.80"}]
[null,null,"И","Завершение работы с соблюдением техники безопасности и санитарно-эпидемиологического режима: поместить использованные материалы в емкость с дезинфицирующим раствором, утилизировать средства защиты",null,"Вычесть все баллы, если не выполнено",null,2,{"v":0.6,"d":"0.60"}]
[{"$nulls":5},"Итого:",null,null,{"$f":"SUM(I3:I22,I24:I42)","v":{"v":30.000000000000004,"d":"30.00"}}]

{"sheet":"КО В","index":4,"n_rows":15,"n_cols":9,"rows_kept":15}
["Код","Подкритерий","Тип аспекта","Аспект","Судейский бал","Методика проверки аспекта","Требования или номинальный размер","Проф. Задача","Макс. Балл"]
["В1","Посев микроорганизмов в столбик агара для определения сахаралитических свойств ",{"$nulls":6},{"$f":"SUM(I3:I14)","v":{"v":10,"d":"10.00"}}]
[null,null,"И","Корректно составить схему исследования. Показать схему экспертам.",null,"Вычесть все баллы, если не выполнено",null,3,{"v":2,"d":"2.00"}]
[null,null,"И","Надеть СИЗ.",null,"Вычесть все баллы, если не выполнено",null,3,{"v":0.2,"d":"0.20"}]
[null,null,"И","Подготовить рабочее место для посева биологического материала на питательную среду (спиртовка, чашки Петри, карандаш по стеклу, скошенный агар с \"чистой культурой\", пробирка со средой Гисса, штативы, дезраствор, салфетки для обработки стола, бактериологическая петля, спички,емкости с дез.рр, спрей с дез.рр, пинцет).",null,"Вычесть 0,1 балл за любой отсутствующий элемент",null,3,{"v":1.5,"d":"1.50"}]
[null,null,"И","Правильно расположить оснащение в соответствии с техникой безопасности",null,"Вычесть все баллы, если не выполнено",null,3,{"v":0.5,"d":"0.50"}]
[null,null,"И","Соблюдение техники безопасности при работе со спиртовкой",null,"Вычесть все баллы, если не выполнено",null,3,{"v":1,"d":"1.00"}]
[null,null,"И","Соблюдение требований инфекционной безопасности ",null,"Вычесть все баллы, если не выполнено",null,3,{"v":0.5,"d":"0.50"}]
[null,null,"И","Провести маркировку материала",null,"Вычесть все баллы, если не выполнено",null,3,{"v":0.5,"d":"0.50"}]
[null,null,"И","Посеять с помощью бактериологической петли \"чистую культуру\" в среду Гисса ",null,"Вычесть все баллы, если не выполнено",null,3,{"v":2,"d":"2.00"}]
[null,null,"И","Правильно поместить посевы в термостат",null,"Вычесть все баллы, если не выполнено",null,3,{"v":0.3,"d":"0.30"}]
[null,null,"И","Рациональное использование расходных материалов",null,"Вычесть все баллы, если не выполнено",null,3,{"v":0.5,"d":"0.50"}]
[null,null,"И","Завершение работы: утилизация средств защиты в соответствии в соответствии с требованием сан-дез режима и  инфекционной безопасности",null,"Вычесть 0,1 балл за любой отсутствующий элемент",null,3,{"v":0.5,"d":"0.50"}]
[null,null,"И","Завершение работы: приведение рабочего места в порядок.",null,"Вычесть 0,1 балл за любой отсутствующий элемент",null,3,{"v":0.5,"d":"0.50"}]
[{"$nulls":5},"Итого:",null,null,{"$f":"SUM(I3:I14)","v":{"v":10,"d":"10.00"}}]

{"sheet":"КО Г","index":5,"n_rows":49,"n_cols":9,"rows_kept":49}
["Код","Подкритерий","Тип аспекта","Аспект","Судейский бал","Методика проверки аспекта","Требования или номинальный размер","Проф. Задача","Макс. Балл"]
["Г1","Проведение микроскопического исследования (мазка крови, микробиологического препарата и гистологических препаратов).",{"$nulls":6},{"$f":"SUM(I3:I48)","v":{"v":19.999999999999996,"d":"20.00"}}]
[null,null,"И"," Надеть СИЗ",null,"Вычесть все баллы, если не выполнено",null,4,{"v":0.3,"d":"0.30"}]
[null,null,"И","Приготовить рабочее место для проведения микроскопического исследования: исследуемые препараты, бланки анализа, ручка, емкость с дезинфицирующим раствором, спирт, иммирсионное масло, безворсовые салфетки, салфетки для обработки поверхностей, спрей с дезраствором",null,"Вычесть 0,1 балл за любой отсутствующий элемент",null,4,{"v":1,"d":"1.00"}]
[null,null,"И","Включить лампу осветителя микроскопа. Установить необходимую яркость лампы при помощи рукоятки регулировки.",null,"Вычесть все баллы, если не выполнено",null,4,{"v":0.2,"d":"0.20"}]
[null,null,"И","Поместить гематологический мазок на предметный столик.",null,"Вычесть все баллы, если не выполнено",null,4,{"v":0.1,"d":"0.10"}]
[null,null,"И","Выбрать необходимый объектив  и ввести его в строго вертикальное положение.",null,"Вычесть все баллы, если не выполнено",null,4,{"v":0.2,"d":"0.20"}]
[null,null,"И","Выбрать необходимое положение конденсора микроскопа и апертуры диафрагмы конденсора.",null,"Вычесть все баллы, если не выполнено",null,4,{"v":0.2,"d":"0.20"}]
[null,null,"И","Установить окуляры микроскопа в удобное для себя положение. Глядя в окуляр, медленно поворачивать макрометрический винт до тех пор, пока в поле зрения не появится изображение объектов исследуемого препарата.",null,"Вычесть все баллы, если не выполнено",null,4,{"v":0.1,"d":"0.10"}]
[null,null,"И","Прокручивая микрометрический винт, добиться четкости изображения объектов в поле зрения микроскопа.",null,"Вычесть все баллы, если не выполнено",null,4,{"v":0.1,"d":"0.10"}]
[null,null,"И","Провести исследование клеток крови в гематологическом мазке.",null,"Вычесть все баллы, если не выполнено",null,4,{"v":1,"d":"1.00"}]
[null,null,"И","Зафиксировать корректно и разборчиво полученные результаты исследования в бланках анализов.",null,"Вычесть все баллы, если не выполнено",null,4,{"v":0.5,"d":"0.50"}]
[null,null,"И","Убрать препарат с предметного столика и поместить в контейнер с дезинфицирующим раствором.",null,"Вычесть все баллы, если не выполнено",null,4,{"v":0.1,"d":"0.10"}]
[null,null,"И","Снять чистой сухой салфеткой слой иммерсионного масла с объектива микроскопа, затем протереть объектив салфеткой, смоченной спиртом.",null,"Вычесть все баллы, если не выполнено",null,4,{"v":0.1,"d":"0.10"}]
[null,null,"И","Поместить микробиологический препарат на предметный столик.",null,"Вычесть все баллы, если не выполнено",null,4,{"v":0.1,"d":"0.10"}]
[null,null,"И","Выбрать необходимый объектив согласно методике проведения микроскопии  и ввести его в строго вертикальное положение.",null,"Вычесть все баллы, если не выполнено",null,4,{"v":0.2,"d":"0.20"}]
[null,null,"И","Выбрать необходимое положение конденсора микроскопа и апертуры диафрагмы конденсора согласно методике микроскопии",null,"Вычесть все баллы, если не выполнено",null,4,{"v":0.2,"d":"0.20"}]
[null,null,"И","Установить окуляры микроскопа в удобное для себя положение Глядя в окуляр, медленно поворачивать макрометрический винт до тех пор, пока в поле зрения не появится изображение. ",null,"Вычесть все баллы, если не выполнено",null,4,{"v":0.1,"d":"0.10"}]
[null,null,"И","Прокручивая микрометрический винт, добиться четкости изображения объектов в поле зрения микроскопа.",null,"Вычесть все баллы, если не выполнено",null,4,{"v":0.1,"d":"0.10"}]
[null,null,"И","Провести микроскопическое исследование микробиологического препарата.",null,"Вычесть все баллы, если не выполнено",null,4,{"v":1,"d":"1.00"}]
[null,null,"И","Зафиксировать корректно и разборчиво полученные результаты исследования в бланках анализов.",null,"Вычесть все баллы, если не выполнено",null,4,{"v":0.5,"d":"0.50"}]
[null,null,"И","Убрать препарат с предметного столика и поместить в контейнер с дезинфицирующим раствором.",null,"Вычесть все баллы, если не выполнено",null,4,{"v":0.1,"d":"0.10"}]
[null,null,"И","Снять чистой сухой салфеткой слой иммерсионного масла с объектива микроскопа, затем протереть объектив салфеткой, смоченной спиртом.",null,"Вычесть все баллы, если не выполнено",null,4,{"v":0.1,"d":"0.10"}]
[null,null,"И","Поместить гистологический препарат под малое увеличение микроскопа.",null,"Вычесть все баллы, если не выполнено",null,4,{"v":0.1,"d":"0.10"}]
[null,null,"И","Выбрать необходимый объектив согласно методике проведения микроскопии  и ввести его в строго вертикальное положение.",null,"Вычесть 0,2 балла за каждую ошибку",null,4,{"v":0.2,"d":"0.20"}]
[null,null,"И","Выбрать необходимое положение конденсора микроскопа и апертуры диафрагмы конденсора согласно методике микроскопии",null,"Вычесть все баллы, если не выполнено",null,4,{"v":0.2,"d":"0.20"}]
[null,null,"И","Установить окуляры микроскопа в удобное для себя положение Глядя в окуляр, медленно поворачивать макрометрический винт до тех пор, пока в поле зрения не появится изображение. ",null,"Вычесть все баллы, если не выполнено",null,4,{"v":0.1,"d":"0.10"}]
[null,null,"И","Поворачивая револьвер объектива, установить большое увеличение микроскопа.",null,"Вычесть все баллы, если не выполнено",null,4,{"v":0.2,"d":"0.20"}]
[null,null,"И","Глядя в окуляр, медленно поворачивать микрометрический винт до тех пор, пока в поле зрения не появится изображение.",null,"Вычесть все баллы, если не выполнено",null,4,{"v":0.1,"d":"0.10"}]
[null,null,"И","Определить морфологию ткани (органа) в препарате",null,"Вычесть все баллы, если не выполнено",null,4,{"v":1,"d":"1.00"}]
[null,null,"И","Зафиксировать корректно и разборчиво полученные результаты исследований в бланки анализов.",null,"Вычесть все баллы, если не выполнено",null,4,0.45]
[null,null,"И","Убрать препарат с предметного столика и поместить в контейнер с дезинфицирующим раствором.",null,"Вычесть все баллы, если не выполнено",null,4,{"v":0.1,"d":"0.10"}]
[null,null,"И","Поместить второй гистологический препарат под малое увеличение микроскопа.",null,"Вычесть все баллы, если не выполнено",null,4,{"v":0.1,"d":"0.10"}]
[null,null,"И","Выбрать необходимый объектив согласно методике проведения микроскопии  и ввести его в строго вертикальное положение.",null,"Вычесть 0,2 балла за каждую ошибку",null,4,{"v":0.2,"d":"0.20"}]
[null,null,"И","Выбрать необходимое положение конденсора микроскопа и апертуры диафрагмы конденсора согласно методике микроскопии",null,"Вычесть все баллы, если не выполнено",null,4,{"v":0.2,"d":"0.20"}]
[null,null,"И","Установить окуляры микроскопа в удобное для себя положение Глядя в окуляр, медленно поворачивать макрометрический винт до тех пор, пока в поле зрения не появится изображение. ",null,"Вычесть все баллы, если не выполнено",null,4,{"v":0.1,"d":"0.10"}]
[null,null,"И","Поворачивая револьвер объектива, установить большое увеличение микроскопа.",null,"Вычесть все баллы, если не выполнено",null,4,{"v":0.2,"d":"0.20"}]
[null,null,"И","Глядя в окуляр, медленно поворачивать микрометрический винт до тех пор, пока в поле зрения не появится изображение.",null,"Вычесть все баллы, если не выполнено",null,4,{"v":0.1,"d":"0.10"}]
[null,null,"И","Определить морфологию ткани (органа) в препарате",null,"Вычесть все баллы, если не выполнено",null,4,{"v":1,"d":"1.00"}]
[null,null,"И","Зафиксировать корректно и разборчиво полученные результаты исследований в бланки анализов.",null,"Вычесть все баллы, если не выполнено",null,4,0.45]
[null,null,"И","Убрать препарат с предметного столика и поместить в контейнер с дезинфицирующим раствором.",null,"Вычесть все баллы, если не выполнено",null,4,{"v":0.1,"d":"0.10"}]
[null,null,"И","Выключить лампу осветителя микроскопа.  Опустить предметный столик с помощью макрометрического винта.",null,"Вычесть все баллы, если не выполнено",null,4,{"v":0.1,"d":"0.10"}]
[null,null,"И","Обработать столик микроскопа спиртом. Обработать поверхность стола дезинфицирующим раствором.",null,"Вычесть все баллы, если не выполнено",null,4,{"v":0.4,"d":"0.40"}]
[null,null,"И","Правильность дифференцировки клеток крови",null,"Вычесть 0,5 балла за каждую неправильную идентификацию вида клетки",null,4,{"v":2,"d":"2.00"}]
[null,null,"И","Правильность соотнесения бактерий представленных на рисунках с бактериями в препарате",null,"Вычесть все баллы если не верно",null,4,{"v":2,"d":"2.00"}]
[null,null,"И","Правильность описания и определения морфологии  ткани (органа) в гистологическом препарате",null,"Вычесть по 1,5 баллов (определение морфологии ткани) и 0,5 балла (описание)  за отсутствующий элемент",null,4,{"v":2,"d":"2.00"}]
[null,null,"И","Правильность описания и определения морфологии  ткани (органа) во втором гистологическом препарате",null,"Вычесть по 1,5 баллов (определение морфологии ткани) и 0,5 балла (описание)  за отсутствующий элемент",null,4,{"v":2,"d":"2.00"}]
[null,null,"И","Завершение работы. Утилизация средств защиты, приведение рабочего места в порядок.",null,"Вычесть 0,1 балл за любой отсутствующий элемент",null,4,{"v":0.3,"d":"0.30"}]
[{"$nulls":5},"Итого:",null,null,{"$f":"SUM(I3:I48)","v":{"v":19.999999999999996,"d":"20.00"}}]

{"sheet":"КО Д","index":6,"n_rows":12,"n_cols":9,"rows_kept":12}
["Код","Подкритерий","Тип аспекта","Аспект","Судейский бал","Методика проверки аспекта","Требования или номинальный размер","Проф. Задача","Макс. Балл"]
["Д1","Проведение лабораторных санитарно-гигиенических исследований - исследование  физических факторов (температура,влажность)",{"$nulls":6},{"$f":"SUM(I3:I11)","v":{"v":10,"d":"10.00"}}]
[null,null,"И","Изучить инструкцию по эксплуатации прибора",null,"Вычесть все баллы, если не выполнено",null,5,{"v":1,"d":"1.00"}]
[null,null,"И","Подготовить прибор к эксплуатации",null,"Вычесть все баллы, если не выполнено",null,5,{"v":0.5,"d":"0.50"}]
[null,null,"И","Обозначить точки для замеров по предложенному плану",null,"Вычесть все баллы, если не выполнено",null,5,{"v":0.5,"d":"0.50"}]
[null,null,"И","Установить прибор для исследования физических факторов в помещении",null,"Вычесть все баллы, если не выполнено",null,5,{"v":1,"d":"1.00"}]
[null,null,"И","Зафиксировать показатели ",null,"Вычесть все баллы, если не выполнено",null,5,{"v":0.5,"d":"0.50"}]
[null,null,"И","Внести полученные показатели в протокол замеров",null,"Вычесть все баллы, если не выполнено",null,5,{"v":2,"d":"2.00"}]
[null,null,"И","Провести обработку результатов анализа",null,"Вычесть все баллы, если не выполнено",null,5,{"v":2,"d":"2.00"}]
[null,null,"И","Сравнить результаты исследования с СанПин и сделать заключение",null,"Вычесть все баллы, если не выполнено",null,5,{"v":2,"d":"2.00"}]
[null,null,"И","Завершить работу: привести рабочее место в порядок",null,"Вычесть 0,1 балл за любой отсутствующий элемент",null,5,{"v":0.5,"d":"0.50"}]
[{"$nulls":5},"Итого:",null,null,{"$f":"SUM(I3:I11)","v":{"v":10,"d":"10.00"}}]

{"sheet":"Профстандарт к А модулю ","index":7,"n_rows":19,"n_cols":3,"rows_kept":19,"merged":[[0,0,0,2],[12,0,12,2],[13,0,13,2],[14,0,14,2],[15,0,15,2],[16,0,16,2],[17,0,17,2],[18,0,18,3]]}
["Профстандарт: 02.071 код A/01.5"]
["Трудовые действия","Знания","Умения"]
["Взятие капиллярной крови для лабораторных исследований;                                                                               Прием биологического материала в лаборатории и предварительная оценка доставленных проб биологического материала;                                             Маркировка проб биологического материала; Регистрация проб биологического материала, поступивших в лабораторию;                                       Обработка и подготовка проб биологического материала к исследованию, транспортировке или хранению; Отбраковка проб биологического материала и оформление отбракованных проб;                                   Взятие проб для санитарно-бактериологического исследования объектов окружающей среды","Этапы проведения лабораторного исследования; Правила взятия, регистрации, транспортировки и хранения биологического материала;                   Принципы сортировки биологического материала, методология работы с использованием автоматизированных систем сортировки;                 Способы маркировки биологических материалов для лабораторных исследований;                                         Методы подготовки образцов биологических материалов к исследованию, транспортировке или хранению;                                                                              Критерии отбраковки биологического материала; Методики взятия проб для санитарно-бактериологического исследования объектов окружающей среды.","Использовать методику взятия капиллярной крови; Осуществлять первичную обработку биологического материала, поступившего в лабораторию:\n- маркировку и регистрацию проб биологического материала;\n- подготовку проб биологического материала к исследованию, транспортировке или хранению;\n- транспортировку биоматериала к месту проведения лабораторных исследований;\n- хранить пробы биологического материала с соблюдением необходимых условий;\n- отбраковка проб биологического материала, не соответствующего утвержденным критериям; Проводить санитарно-бактериологическое обследование объектов окружающей среды.\n"]
[null,"Профстандарт: 02.071 код A/03.5"]
["Трудовые действия","Знания","Умения"]
["Выполнение санитарных норм и правил при работе с потенциально опасным биологическим материалом;  Проведение мероприятий по защите персонала и пациентов от передачи инфекций, связанных с оказанием медицинской помощи, при сборе проб и работе с потенциально опасным биологическим материалом;                                                                      Проведение комплекса мероприятий по обеззараживанию и (или) обезвреживанию медицинских отходов класса Б и В, медицинских изделий, лабораторной посуды, инструментария, средств защиты;                                                                 Проведение экстренных профилактических мероприятий при возникновении аварийных ситуаций с риском инфицирования медицинского персонала; Соблюдение правил эксплуатации оборудования и требований охраны труда      ","Санитарно-эпидемиологические требования к организации работы медицинских лабораторий;      Меры индивидуальной защиты медицинского персонала и пациентов от инфицирования при выполнении лабораторных исследований;       Санитарно-эпидемиологические требования к проведению мероприятий по обеззараживанию и (или) обезвреживанию медицинских отходов класса Б и В, медицинских изделий, лабораторной посуды, инструментария, средств защиты;                        Санитарные нормы и правила по работе с микроорганизмами I-IV группы патогенности;    Комплекс экстренных профилактических мероприятий при возникновении аварийных ситуаций с риском инфицирования медицинского персонала;             Правила эксплуатации оборудования и требования охраны труда.","Обеспечивать выполнение санитарных норм и правил при работе с потенциально опасным биологическим материалом и с микроорганизмами I-IV группы патогенности;                                                         Организовывать и проводить комплекс мероприятий по обеззараживанию и (или) обезвреживанию медицинских отходов класса Б и В, медицинских изделий, лабораторной посуды, инструментария, средств защиты;                                                               Проводить первичную обработку и экстренную профилактику инфекций, связанных с оказанием медицинской помощи, при попадании биологических материалов на кожу, слизистые, при уколах, порезах; Соблюдать правила эксплуатации оборудования и требования охраны труда"]
[null,"Профстандарт: 02.071 код A/04.5"]
["Трудовые действия","Знания","Умения"]
["Составление плана работы и отчета о своей работе; Ведение медицинской документации, в том числе в форме электронного документа;                                  Контроль выполнения должностных обязанностей находящимся в распоряжении младшим медицинским персоналом;                                                                     Оформление и выдача пациенту или врачу результатов лабораторных исследований первой и второй категории сложности, не требующих дополнительной оценки или интерпретации;                                                                Использование в работе информационных систем в сфере здравоохранения и информационно-телекоммуникационной сети \"Интернет\" ; Использование в работе персональных данных пациентов и сведений, составляющих врачебную тайну ","Нормативные правовые акты Российской Федерации в сфере здравоохранения, общие вопросы организации лабораторной службы, правила проведения лабораторных исследований;                                Функциональные обязанности находящегося в распоряжении младшего медицинского персонала лаборатории;                                                                          Правила учета расходных материалов и реагентов, требования к качеству поступающих расходных материалов и реагентов;                                                         Правила оформления медицинской документации в медицинских лабораториях, в том числе в форме электронного документа;                                                       Правила работы в информационных системах в сфере здравоохранения и информационно-телекоммуникационной сети \"Интернет\";              Правила обращения с персональными данными пациентов и сведениями, составляющими врачебную тайну;                                                                                    Требования охраны труда, основы личной безопасности и конфликтологии","Составлять план работы и отчет о своей работе; Заполнять медицинскую документацию, в том числе в форме электронного документа, и контролировать качество ее ведения;                                                                Вести учет расходования реагентов и материалов при проведении лабораторных исследований первой и второй категории сложности;                        Контролировать выполнение должностных обязанностей находящимся в распоряжении младшим медицинским персоналом;                                 Использовать информационные системы и информационно-телекоммуникационную сеть \"Интернет\";                                                                   Использовать в работе персональные данные пациентов и сведения, составляющие врачебную тайну"]
[null,"Профстандарт: 02.071 код A/05.5"]
["Трудовые действия","Знания","Умения"]
["Оценка состояния, требующего оказания медицинской помощи в экстренной форме;                                   Распознавание состояний, представляющих угрозу жизни, включая состояние клинической смерти (остановка жизненно важных функций организма человека (кровообращения и (или) дыхания), требующих оказания медицинской помощи в экстренной форме;                                                                                        Оказание медицинской помощи в экстренной форме при состояниях, представляющих угрозу жизни, в том числе клинической смерти (остановка жизненно важных функций организма человека (кровообращения и (или) дыхания), в том числе беременным и детям; Выполнение мероприятий базовой сердечно-легочной реанимации","Методика сбора жалоб и анамнеза жизни и заболевания у пациентов (их законных представителей) или лиц, осуществляющих уход; Клинические признаки внезапных острых заболеваний и состояний, представляющие угрозу жизни человека;   Клинические признаки внезапного прекращения кровообращения и (или) дыхания;                             Правила проведения базовой сердечно-легочной реанимации;                                                                             Способы медицинской эвакуации пациентов","Оценивать состояния, требующие оказания медицинской помощи в экстренной форме; Распознавать состояния, представляющие угрозу жизни, включая состояние клинической смерти (остановка жизненно важных функций организма человека (кровообращения и (или) дыхания), требующие оказания медицинской помощи в экстренной форме;                                                              Выполнять мероприятия базовой сердечно-легочной реанимации;                                                                        Оказывать медицинскую помощь в экстренной форме при состояниях, представляющих угрозу жизни, в том числе клинической смерти (остановка жизненно важных функций организма человека (кровообращения и (или) дыхания), в том числе беременным и детям"]
["ФГОС СПО 31.02.03 Лабораторная диагностика"]
["Профессиональные компетенции по видам деятельности"]
["ПК 1.1. Проводить физико-химические исследования и владеть \nтехникой лабораторных работ."]
["ПК 1.2. Обеспечивать требования охраны труда, правил техники \nбезопасности, санитарно-эпидемиологического и гигиенического \nрежимов при выполнении клинических лабораторных \nисследований и инструментальных исследований при \nпроизводстве судебно-медицинских экспертиз (исследований)"]
["ПК 1.3. Организовывать деятельность находящегося в \nраспоряжении медицинского персонала"]
["ПК 1.4. Вести медицинскую документацию при выполнении \nлабораторных исследований с учетом профиля лаборатории."]
["ПК 1.5. Оказывать медицинскую помощь в экстренной форме.\n"]

{"sheet":"Профстандарт к Б модулю (2)","index":8,"n_rows":16,"n_cols":3,"rows_kept":16,"merged":[[0,0,0,2],[9,0,9,2],[10,0,10,2],[11,0,11,2],[12,0,12,2],[13,0,13,2],[14,0,14,2],[15,0,15,3]]}
["Профстандарт: 02.071 код A/02.5"]
["Трудовые действия","Знания","Умения"]
["Подготовка рабочего места, реагентов, расходного материала и лабораторного оборудования для проведения лабораторных исследований в соответствии со стандартными операционными процедурами; Выполнение лабораторных исследований первой и второй категории сложности и отдельных этапов лабораторных исследований третьей категории сложности без оценки результатов или с первичной их оценкой, без формулирования заключения:\n- химико-микроскопических;\n- гематологических;\n- биохимических;\n- коагулологических;\n- иммунологических;\n- иммуногематологических;\n- химико-токсикологических;                                             Оценка результатов клинических лабораторных исследований первой и второй категории сложности и направление их медицинскому технологу,  врачу клинической лабораторной диагностики для дальнейшей оценки, интерпретации и формулирования заключения","Нормативные правовые акты Российской Федерации в сфере здравоохранения, общие вопросы организации лабораторной службы, правила проведения лабораторных исследований;                                        Правила организации деятельности лаборатории, этапы лабораторных исследований, задачи персонала;  Правила транспортировки и хранения проб биологического материала с целью проведения отсроченного лабораторного исследования;                Виды лабораторного оборудования и правила его эксплуатации;                                                                         Правила учета и контроля расходных материалов в соответствии с технологиями и методиками;           Правила учета и контроля расходных материалов в соответствии с технологиями и методиками;          Технологии аналитического этапа лабораторных исследований первой и второй категории сложности в соответствии с видами исследований;                       Правила передачи результатов лабораторных исследований медицинскому технологу, биологу или врачу клинической лабораторной диагностики для их оценки и интерпретации;                                                              Комплекс мер по обеспечению качества лабораторных исследований на аналитическом этапе             ","Подготавливать рабочее место и лабораторное оборудование для проведения исследований в соответствии со стандартными операционными процедурами;                                                                         Проводить лабораторные исследования биологического материала первой и второй категории сложности самостоятельно и отдельные этапы лабораторных исследований третьей категории сложности под руководством медицинского технолога, биолога, бактериолога, медицинского микробиолога или врача клинической лабораторной диагностики без формулирования заключения:\n- химико-микроскопические;\n- гематологические;\n- биохимические;\n- коагулологические;\n- иммунологические;\n- иммуногематологические;\n- химико-токсикологические;\nОценивать результаты лабораторных исследований первой и второй категории сложности для направления их медицинскому технологу, врачу клинической лабораторной диагностики для интерпретации и формулирования заключения\n"]
[null,"Профстандарт: 02.071 код A/03.5"]
["Трудовые действия","Знания","Умения"]
["Выполнение санитарных норм и правил при работе с потенциально опасным биологическим материалом;  Проведение мероприятий по защите персонала и пациентов от передачи инфекций, связанных с оказанием медицинской помощи, при сборе проб и работе с потенциально опасным биологическим материалом;                                                                      Проведение комплекса мероприятий по обеззараживанию и (или) обезвреживанию медицинских отходов класса Б и В, медицинских изделий, лабораторной посуды, инструментария, средств защиты;                                                                 Проведение экстренных профилактических мероприятий при возникновении аварийных ситуаций с риском инфицирования медицинского персонала; Соблюдение правил эксплуатации оборудования и требований охраны труда      ","Санитарно-эпидемиологические требования к организации работы медицинских лабораторий;      Меры индивидуальной защиты медицинского персонала и пациентов от инфицирования при выполнении лабораторных исследований;       Санитарно-эпидемиологические требования к проведению мероприятий по обеззараживанию и (или) обезвреживанию медицинских отходов класса Б и В, медицинских изделий, лабораторной посуды, инструментария, средств защиты;                        Санитарные нормы и правила по работе с микроорганизмами I-IV группы патогенности;    Комплекс экстренных профилактических мероприятий при возникновении аварийных ситуаций с риском инфицирования медицинского персонала;             Правила эксплуатации оборудования и требования охраны труда.","Обеспечивать выполнение санитарных норм и правил при работе с потенциально опасным биологическим материалом и с микроорганизмами I-IV группы патогенности;                                                         Организовывать и проводить комплекс мероприятий по обеззараживанию и (или) обезвреживанию медицинских отходов класса Б и В, медицинских изделий, лабораторной посуды, инструментария, средств защиты;                                                               Проводить первичную обработку и экстренную профилактику инфекций, связанных с оказанием медицинской помощи, при попадании биологических материалов на кожу, слизистые, при уколах, порезах; Соблюдать правила эксплуатации оборудования и требования охраны труда"]
[null,"Профстандарт: 02.071 код A/04.5"]
["Трудовые действия","Знания","Умения"]
["Составление плана работы и отчета о своей работе; Ведение медицинской документации, в том числе в форме электронного документа;                                  Контроль выполнения должностных обязанностей находящимся в распоряжении младшим медицинским персоналом;                                                                     Оформление и выдача пациенту или врачу результатов лабораторных исследований первой и второй категории сложности, не требующих дополнительной оценки или интерпретации;                                                                Использование в работе информационных систем в сфере здравоохранения и информационно-телекоммуникационной сети \"Интернет\" ; Использование в работе персональных данных пациентов и сведений, составляющих врачебную тайну ","Нормативные правовые акты Российской Федерации в сфере здравоохранения, общие вопросы организации лабораторной службы, правила проведения лабораторных исследований;                                Функциональные обязанности находящегося в распоряжении младшего медицинского персонала лаборатории;                                                                          Правила учета расходных материалов и реагентов, требования к качеству поступающих расходных материалов и реагентов;                                                         Правила оформления медицинской документации в медицинских лабораториях, в том числе в форме электронного документа;                                                       Правила работы в информационных системах в сфере здравоохранения и информационно-телекоммуникационной сети \"Интернет\";              Правила обращения с персональными данными пациентов и сведениями, составляющими врачебную тайну;                                                                                    Требования охраны труда, основы личной безопасности и конфликтологии","Составлять план работы и отчет о своей работе; Заполнять медицинскую документацию, в том числе в форме электронного документа, и контролировать качество ее ведения;                                                                Вести учет расходования реагентов и материалов при проведении лабораторных исследований первой и второй категории сложности;                        Контролировать выполнение должностных обязанностей находящимся в распоряжении младшим медицинским персоналом;                                 Использовать информационные системы и информационно-телекоммуникационную сеть \"Интернет\";                                                                   Использовать в работе персональные данные пациентов и сведения, составляющие врачебную тайну"]
["ФГОС СПО 31.02.03 Лабораторная диагностика"]
["Профессиональные компетенции по видам деятельности"]
["ПК 2.1. Выполнять процедуры преаналитического (лабораторного)\nэтапа клинических лабораторных исследований первой и второй\nкатегории сложности.\n\n\n"]
["ПК 2.2. Выполнять процедуры аналитического этапа клинических\nлабораторных исследований первой и второй категории\nсложности."]
["ПК 2.3. Выполнять процедуры постаналитического этапа\nклинических лабораторных исследований первой и второй\nкатегории сложности."]
[]
["\n"]

{"sheet":"Профстандарт к В модулю (3)","index":9,"n_rows":14,"n_cols":3,"rows_kept":14,"merged":[[0,0,0,2],[9,0,9,2],[10,0,10,2],[11,0,11,2],[12,0,12,2],[13,0,13,2],[14,0,14,2],[15,0,15,3]]}
["Профстандарт: 02.071 код A/02.5"]
["Трудовые действия","Знания","Умения"]
["Подготовка рабочего места, реагентов, расходного материала и лабораторного оборудования для проведения лабораторных исследований в соответствии со стандартными операционными процедурами; Выполнение лабораторных исследований первой и второй категории сложности и отдельных этапов лабораторных исследований третьей категории сложности без оценки результатов или с первичной их оценкой, без формулирования заключения:\n- иммунологических;\n- молекулярно-биологические;\n- микробиологические, в том числе бактериологические, паразитологические и вирусологические\nОценка результатов клинических лабораторных исследований первой и второй категории сложности и направление их медицинскому технологу,  биолога, бактериолога, медицинского микробиолога для дальнейшей оценки, интерпретации и формулирования заключения","Нормативные правовые акты Российской Федерации в сфере здравоохранения, общие вопросы организации лабораторной службы, правила проведения лабораторных исследований;                                        Правила организации деятельности лаборатории, этапы лабораторных исследований, задачи персонала;  Правила транспортировки и хранения проб биологического материала с целью проведения отсроченного лабораторного исследования;                Виды лабораторного оборудования и правила его эксплуатации;                                                                         Правила учета и контроля расходных материалов в соответствии с технологиями и методиками;           Правила учета и контроля расходных материалов в соответствии с технологиями и методиками;          Технологии аналитического этапа лабораторных исследований первой и второй категории сложности в соответствии с видами исследований;                       Правила передачи результатов лабораторных исследований медицинскому технологу, биолога, бактериолога, медицинского микробиологадля их оценки и интерпретации;                                                              Комплекс мер по обеспечению качества лабораторных исследований на аналитическом этапе             ","Подготавливать рабочее место и лабораторное оборудование для проведения исследований в соответствии со стандартными операционными процедурами;                                                                         Проводить лабораторные исследования биологического материала первой и второй категории сложности самостоятельно и отдельные этапы лабораторных исследований третьей категории сложности под руководством медицинского технолога, биолога, бактериолога, медицинского микробиолога или врача клинической лабораторной диагностики без формулирования заключения:\n- иммунологических;\n- молекулярно-биологические;\n- микробиологические, в том числе бактериологические, паразитологические и вирусологические\nОценивать результаты лабораторных исследований первой и второй категории сложности для направления их медицинскому технологу,биолога, бактериолога, медицинского микробиолога для интерпретации и формулирования заключения"]
[null,"Профстандарт: 02.071 код A/03.5"]
["Трудовые действия","Знания","Умения"]
["Выполнение санитарных норм и правил при работе с потенциально опасным биологическим материалом;  Проведение мероприятий по защите персонала и пациентов от передачи инфекций, связанных с оказанием медицинской помощи, при сборе проб и работе с потенциально опасным биологическим материалом;                                                                      Проведение комплекса мероприятий по обеззараживанию и (или) обезвреживанию медицинских отходов класса Б и В, медицинских изделий, лабораторной посуды, инструментария, средств защиты;                                                                 Проведение экстренных профилактических мероприятий при возникновении аварийных ситуаций с риском инфицирования медицинского персонала; Соблюдение правил эксплуатации оборудования и требований охраны труда      ","Санитарно-эпидемиологические требования к организации работы медицинских лабораторий;      Меры индивидуальной защиты медицинского персонала и пациентов от инфицирования при выполнении лабораторных исследований;       Санитарно-эпидемиологические требования к проведению мероприятий по обеззараживанию и (или) обезвреживанию медицинских отходов класса Б и В, медицинских изделий, лабораторной посуды, инструментария, средств защиты;                        Санитарные нормы и правила по работе с микроорганизмами I-IV группы патогенности;    Комплекс экстренных профилактических мероприятий при возникновении аварийных ситуаций с риском инфицирования медицинского персонала;             Правила эксплуатации оборудования и требования охраны труда.","Обеспечивать выполнение санитарных норм и правил при работе с потенциально опасным биологическим материалом и с микроорганизмами I-IV группы патогенности;                                                         Организовывать и проводить комплекс мероприятий по обеззараживанию и (или) обезвреживанию медицинских отходов класса Б и В, медицинских изделий, лабораторной посуды, инструментария, средств защиты;                                                               Проводить первичную обработку и экстренную профилактику инфекций, связанных с оказанием медицинской помощи, при попадании биологических материалов на кожу, слизистые, при уколах, порезах; Соблюдать правила эксплуатации оборудования и требования охраны труда"]
[null,"Профстандарт: 02.071 код A/04.5"]
["Трудовые действия","Знания","Умения"]
["Составление плана работы и отчета о своей работе; Ведение медицинской документации, в том числе в форме электронного документа;                                  Контроль выполнения должностных обязанностей находящимся в распоряжении младшим медицинским персоналом;                                                                     Оформление и выдача пациенту или врачу результатов лабораторных исследований первой и второй категории сложности, не требующих дополнительной оценки или интерпретации;                                                                Использование в работе информационных систем в сфере здравоохранения и информационно-телекоммуникационной сети \"Интернет\" ; Использование в работе персональных данных пациентов и сведений, составляющих врачебную тайну ","Нормативные правовые акты Российской Федерации в сфере здравоохранения, общие вопросы организации лабораторной службы, правила проведения лабораторных исследований;                                Функциональные обязанности находящегося в распоряжении младшего медицинского персонала лаборатории;                                                                          Правила учета расходных материалов и реагентов, требования к качеству поступающих расходных материалов и реагентов;                                                         Правила оформления медицинской документации в медицинских лабораториях, в том числе в форме электронного документа;                                                       Правила работы в информационных системах в сфере здравоохранения и информационно-телекоммуникационной сети \"Интернет\";              Правила обращения с персональными данными пациентов и сведениями, составляющими врачебную тайну;                                                                                    Требования охраны труда, основы личной безопасности и конфликтологии","Составлять план работы и отчет о своей работе; Заполнять медицинскую документацию, в том числе в форме электронного документа, и контролировать качество ее ведения;                                                                Вести учет расходования реагентов и материалов при проведении лабораторных исследований первой и второй категории сложности;                        Контролировать выполнение должностных обязанностей находящимся в распоряжении младшим медицинским персоналом;                                 Использовать информационные системы и информационно-телекоммуникационную сеть \"Интернет\";                                                                   Использовать в работе персональные данные пациентов и сведения, составляющие врачебную тайну"]
["ФГОС СПО 31.02.03 Лабораторная диагностика"]
["Профессиональные компетенции по видам деятельности"]
["ПК 3.1. Выполнять процедуры преаналитического (лабораторного) \nэтапа микробиологических исследований первой и второй \nкатегории сложности.\n\n"]
["ПК 3.2. Выполнять процедуры аналитического этапа \nмикробиологических исследований первой и второй категории \nсложности."]
["ПК 3.3. Выполнять процедуры постаналитического этапа \nмикробиологических исследований первой и второй категории \nсложности"]

{"sheet":"Профстандарт  к Г модулю(4)","index":10,"n_rows":14,"n_cols":3,"rows_kept":14,"merged":[[0,0,0,2],[9,0,9,2],[10,0,10,2],[11,0,11,2],[12,0,12,2],[13,0,13,2],[14,0,14,2],[15,0,15,3]]}
["Профстандарт: 02.071 код A/02.5"]
["Трудовые действия","Знания","Умения"]
["Подготовка рабочего места, реагентов, расходного материала и лабораторного оборудования для проведения лабораторных исследований в соответствии со стандартными операционными процедурами; Выполнение лабораторных исследований первой и второй категории сложности и отдельных этапов лабораторных исследований третьей категории сложности без оценки результатов или с первичной их оценкой, без формулирования заключения:\n- химико-микроскопических;\n- гематологических;\n- цитологические;                                                                                   -  микробиологические, в том числе бактериологические, паразитологические и вирусологические                                                                     Оценка результатов клинических лабораторных исследований первой и второй категории сложности и направление их медицинскому технологу, биолога, бактериолога, медицинского микробиолога или врачу клинической лабораторной диагностики для дальнейшей оценки, интерпретации и формулирования заключения","Нормативные правовые акты Российской Федерации в сфере здравоохранения, общие вопросы организации лабораторной службы, правила проведения лабораторных исследований;                                        Правила организации деятельности лаборатории, этапы лабораторных исследований, задачи персонала;  Правила транспортировки и хранения проб биологического материала с целью проведения отсроченного лабораторного исследования;                Виды лабораторного оборудования и правила его эксплуатации;                                                                         Правила учета и контроля расходных материалов в соответствии с технологиями и методиками;           Правила учета и контроля расходных материалов в соответствии с технологиями и методиками;          Технологии аналитического этапа лабораторных исследований первой и второй категории сложности в соответствии с видами исследований;                       Правила передачи результатов лабораторных исследований медицинскому технологу,  биолога, бактериолога, медицинского микробиолога или врачу клинической лабораторной диагностики для их оценки и интерпретации;                                                              Комплекс мер по обеспечению качества лабораторных исследований на аналитическом этапе          ","Подготавливать рабочее место и лабораторное оборудование для проведения исследований в соответствии со стандартными операционными процедурами;                                                                         Проводить лабораторные исследования биологического материала первой и второй категории сложности самостоятельно и отдельные этапы лабораторных исследований третьей категории сложности под руководством медицинского технолога, биолога, бактериолога, медицинского микробиолога или врача клинической лабораторной диагностики без формулирования заключения:\n- химико-микроскопические;\n- гематологические;                                                                            - цитологические;\n- микробиологические, в том числе бактериологические, паразитологические и вирусологические\nОценивать результаты лабораторных исследований первой и второй категории сложности для направления их медицинскому технологу,биолога, бактериолога, медицинского микробиолога или врачу клинической лабораторной диагностики для интерпретации и формулирования заключения"]
[null,"Профстандарт: 02.071 код A/03.5"]
["Трудовые действия","Знания","Умения"]
["Выполнение санитарных норм и правил при работе с потенциально опасным биологическим материалом;  Проведение мероприятий по защите персонала и пациентов от передачи инфекций, связанных с оказанием медицинской помощи, при сборе проб и работе с потенциально опасным биологическим материалом;                                                                      Проведение комплекса мероприятий по обеззараживанию и (или) обезвреживанию медицинских отходов класса Б и В, медицинских изделий, лабораторной посуды, инструментария, средств защиты;                                                                 Проведение экстренных профилактических мероприятий при возникновении аварийных ситуаций с риском инфицирования медицинского персонала; Соблюдение правил эксплуатации оборудования и требований охраны труда      ","Санитарно-эпидемиологические требования к организации работы медицинских лабораторий;      Меры индивидуальной защиты медицинского персонала и пациентов от инфицирования при выполнении лабораторных исследований;       Санитарно-эпидемиологические требования к проведению мероприятий по обеззараживанию и (или) обезвреживанию медицинских отходов класса Б и В, медицинских изделий, лабораторной посуды, инструментария, средств защиты;                        Санитарные нормы и правила по работе с микроорганизмами I-IV группы патогенности;    Комплекс экстренных профилактических мероприятий при возникновении аварийных ситуаций с риском инфицирования медицинского персонала;             Правила эксплуатации оборудования и требования охраны труда.","Обеспечивать выполнение санитарных норм и правил при работе с потенциально опасным биологическим материалом и с микроорганизмами I-IV группы патогенности;                                                         Организовывать и проводить комплекс мероприятий по обеззараживанию и (или) обезвреживанию медицинских отходов класса Б и В, медицинских изделий, лабораторной посуды, инструментария, средств защиты;                                                               Проводить первичную обработку и экстренную профилактику инфекций, связанных с оказанием медицинской помощи, при попадании биологических материалов на кожу, слизистые, при уколах, порезах; Соблюдать правила эксплуатации оборудования и требования охраны труда"]
[null,"Профстандарт: 02.071 код A/04.5"]
["Трудовые действия","Знания","Умения"]
["Составление плана работы и отчета о своей работе; Ведение медицинской документации, в том числе в форме электронного документа;                                  Контроль выполнения должностных обязанностей находящимся в распоряжении младшим медицинским персоналом;                                                                     Оформление и выдача пациенту или врачу результатов лабораторных исследований первой и второй категории сложности, не требующих дополнительной оценки или интерпретации;                                                                Использование в работе информационных систем в сфере здравоохранения и информационно-телекоммуникационной сети \"Интернет\" ; Использование в работе персональных данных пациентов и сведений, составляющих врачебную тайну ","Нормативные правовые акты Российской Федерации в сфере здравоохранения, общие вопросы организации лабораторной службы, правила проведения лабораторных исследований;                                Функциональные обязанности находящегося в распоряжении младшего медицинского персонала лаборатории;                                                                          Правила учета расходных материалов и реагентов, требования к качеству поступающих расходных материалов и реагентов;                                                         Правила оформления медицинской документации в медицинских лабораториях, в том числе в форме электронного документа;                                                       Правила работы в информационных системах в сфере здравоохранения и информационно-телекоммуникационной сети \"Интернет\";              Правила обращения с персональными данными пациентов и сведениями, составляющими врачебную тайну;                                                                                    Требования охраны труда, основы личной безопасности и конфликтологии","Составлять план работы и отчет о своей работе; Заполнять медицинскую документацию, в том числе в форме электронного документа, и контролировать качество ее ведения;                                                                Вести учет расходования реагентов и материалов при проведении лабораторных исследований первой и второй категории сложности;                        Контролировать выполнение должностных обязанностей находящимся в распоряжении младшим медицинским персоналом;                                 Использовать информационные системы и информационно-телекоммуникационную сеть \"Интернет\";                                                                   Использовать в работе персональные данные пациентов и сведения, составляющие врачебную тайну"]
["ФГОС СПО 31.02.03 Лабораторная диагностика"]
["Нормативные правовые акты Российской Федерации в сфере здравоохранения, общие вопросы организации лабораторной службы, правила проведения лабораторных исследований;                                Функциональные обязанности находящегося в распоряжении младшего медицинского персонала лаборатории;                                                                          Правила учета расходных материалов и реагентов, требования к качеству поступающих расходных материалов и реагентов;                                                         Правила оформления медицинской документации в медицинских лабораториях, в том числе в форме электронного документа;                                                       Правила работы в информационных системах в сфере здравоохранения и информационно-телекоммуникационной сети \"Интернет\";              Правила обращения с персональными данными пациентов и сведениями, составляющими врачебную тайну;                                                                                    Требования охраны труда, основы личной безопасности и конфликтологии"]
["ПК 4.1. Выполнять процедуры преаналитического (лабораторного) \nэтапа морфологических исследований первой и второй категории \nсложности.\n\n"]
["ПК 4.2. Выполнять процедуры аналитического этапа \nморфологических исследований первой и второй категории \nсложности."]
["ПК 4.3. Выполнять процедуры постаналитического этапа \nморфологических исследований первой и второй категории \nсложности"]

{"sheet":"Профстандарт к Д модулю (5)","index":11,"n_rows":11,"n_cols":3,"rows_kept":11,"merged":[[6,0,6,2],[7,0,7,2],[8,0,8,2],[9,0,9,2],[10,0,10,2],[11,0,11,2],[12,0,12,3]]}
[null,"Профстандарт: 02.071 код A/03.5"]
["Трудовые действия","Знания","Умения"]
["Выполнение санитарных норм и правил при работе с потенциально опасным биологическим материалом;  Проведение мероприятий по защите персонала и пациентов от передачи инфекций, связанных с оказанием медицинской помощи, при сборе проб и работе с потенциально опасным биологическим материалом;                                                                      Проведение комплекса мероприятий по обеззараживанию и (или) обезвреживанию медицинских отходов класса Б и В, медицинских изделий, лабораторной посуды, инструментария, средств защиты;                                                                 Проведение экстренных профилактических мероприятий при возникновении аварийных ситуаций с риском инфицирования медицинского персонала; Соблюдение правил эксплуатации оборудования и требований охраны труда      ","Санитарно-эпидемиологические требования к организации работы медицинских лабораторий;      Меры индивидуальной защиты медицинского персонала и пациентов от инфицирования при выполнении лабораторных исследований;       Санитарно-эпидемиологические требования к проведению мероприятий по обеззараживанию и (или) обезвреживанию медицинских отходов класса Б и В, медицинских изделий, лабораторной посуды, инструментария, средств защиты;                        Санитарные нормы и правила по работе с микроорганизмами I-IV группы патогенности;    Комплекс экстренных профилактических мероприятий при возникновении аварийных ситуаций с риском инфицирования медицинского персонала;             Правила эксплуатации оборудования и требования охраны труда.","Обеспечивать выполнение санитарных норм и правил при работе с потенциально опасным биологическим материалом и с микроорганизмами I-IV группы патогенности;                                                         Организовывать и проводить комплекс мероприятий по обеззараживанию и (или) обезвреживанию медицинских отходов класса Б и В, медицинских изделий, лабораторной посуды, инструментария, средств защиты;                                                               Проводить первичную обработку и экстренную профилактику инфекций, связанных с оказанием медицинской помощи, при попадании биологических материалов на кожу, слизистые, при уколах, порезах; Соблюдать правила эксплуатации оборудования и требования охраны труда"]
[null,"Профстандарт: 02.071 код A/04.5"]
["Трудовые действия","Знания","Умения"]
["Составление плана работы и отчета о своей работе; Ведение медицинской документации, в том числе в форме электронного документа;                                  Контроль выполнения должностных обязанностей находящимся в распоряжении младшим медицинским персоналом;                                                                     Оформление и выдача пациенту или врачу результатов лабораторных исследований первой и второй категории сложности, не требующих дополнительной оценки или интерпретации;                                                                Использование в работе информационных систем в сфере здравоохранения и информационно-телекоммуникационной сети \"Интернет\" ; Использование в работе персональных данных пациентов и сведений, составляющих врачебную тайну ","Нормативные правовые акты Российской Федерации в сфере здравоохранения, общие вопросы организации лабораторной службы, правила проведения лабораторных исследований;                                Функциональные обязанности находящегося в распоряжении младшего медицинского персонала лаборатории;                                                                          Правила учета расходных материалов и реагентов, требования к качеству поступающих расходных материалов и реагентов;                                                         Правила оформления медицинской документации в медицинских лабораториях, в том числе в форме электронного документа;                                                       Правила работы в информационных системах в сфере здравоохранения и информационно-телекоммуникационной сети \"Интернет\";              Правила обращения с персональными данными пациентов и сведениями, составляющими врачебную тайну;                                                                                    Требования охраны труда, основы личной безопасности и конфликтологии","Составлять план работы и отчет о своей работе; Заполнять медицинскую документацию, в том числе в форме электронного документа, и контролировать качество ее ведения;                                                                Вести учет расходования реагентов и материалов при проведении лабораторных исследований первой и второй категории сложности;                        Контролировать выполнение должностных обязанностей находящимся в распоряжении младшим медицинским персоналом;                                 Использовать информационные системы и информационно-телекоммуникационную сеть \"Интернет\";                                                                   Использовать в работе персональные данные пациентов и сведения, составляющие врачебную тайну"]
["ФГОС СПО 31.02.03 Лабораторная диагностика"]
["Профессиональные компетенции по видам деятельности"]
["ПК 5.1. Выполнять процедуры преаналитического (лабораторного) \nэтапа санитарно-эпидемиологических исследований в \nсоответствии с профилем санитарно-гигиенической лаборатории.\n\n"]
["ПК 5.2. Выполнять процедуры аналитического этапа санитарно эпидемиологических исследований в соответствии с профилем \nсанитарно-гигиенической лаборатории."]
["ПК 5.3. Выполнять процедуры постаналитического этапа\nсанитарно-эпидемиологических исследований в соответствии с \nпрофилем санитарно-гигиенической лаборатории."]